{"text_format":"1","workbook":"xlsx","n_sheets":11,"sheets":["Início","2","FSA Micro <=10","FSA Micro >10","FSA Mini","MD","DU","Dados","Fim","Modelos","config"],"not_rendered":{"charts":0,"images":13,"macros":1,"external_links":0,"defined_names":9,"comments":0,"pivot_tables":0},"unopened":[],"bounds":{"document_bytes":16777216,"sheet_cells":100000,"rows_first":2000,"rows_last":500,"rows_between":2000,"halvings":0,"cell_chars":16384,"cell_head_chars":4096},"cells_cut":0,"cells_raw":0,"read":"whole","date_system":"1900"}

{"sheet":"Início","index":0,"n_rows":25,"n_cols":7,"rows_kept":25,"cut":false,"hidden":false,"merged":[[9,1,12,9],[14,1,21,9],[2,6,7,10],[24,6,24,8]]}
[]
[]
[null,null,null,null,null,null,"Projeto Modelo de Micro e Minigeração Distribuída 1.6"]
[]
[]
[]
[]
[]
[]
[null,"Olá,\nseja bem-vindo(a)!"]
[]
[]
[]
[]
[null,{"$f":"\"Essa é uma ferramenta criada pela Neoenergia para facilitar a submissão do projeto de geração distribuída e melhorar a experiência do cliente.\" &\n\"\nNavegue pelos formulários a seguir preenchendo com as informações solicitadas.\nAo final, os arquivos em PDF serão criados e salvos automaticamente.\n\nSimples e rápido.\"","v":"Essa é uma ferramenta criada pela Neoenergia para facilitar a submissão do projeto de geração distribuída e melhorar a experiência do cliente.\nNavegue pelos formulários a seguir preenchendo com as informações solicitadas.\nAo final, os arquivos em PDF serão criados e salvos automaticamente.\n\nSimples e rápido."}]
[]
[]
[]
[]
[]
[]
[]
[]
[null,"Pronto(a) para iniciar o preenchimento?"]
[null,null,null,null,null,null,"Neoenergia Distribuição Brasília"]

{"sheet":"2","index":1,"n_rows":9,"n_cols":2,"rows_kept":9,"cut":false,"hidden":false,"merged":[[8,1,10,9],[12,1,14,9]]}
[]
[]
[]
[]
[]
[]
[]
[]
[null,"Selecione o tipo de formulário de solicitação de acesso:"]

{"sheet":"FSA Micro <=10","index":2,"n_rows":86,"n_cols":15,"rows_kept":86,"cut":false,"hidden":false,"merged":[[0,0,0,9],[1,0,1,9],[2,0,2,9],[4,0,4,9],[5,0,5,1],[5,2,5,5],[5,6,5,7],[5,8,5,9],[6,0,6,1],[6,2,6,9],[7,0,7,1],[7,2,7,5],[8,1,8,3],[8,5,8,9],[9,1,9,4],[9,5,9,8],[10,1,10,2],[10,5,10,8],[11,0,11,1],[11,2,11,4],[11,5,11,8],[12,0,12,9],[13,0,13,2],[13,4,13,7],[13,8,13,9],[14,0,14,1],[14,2,14,3],[15,0,15,1],[15,6,15,7],[16,0,16,9],[17,0,17,3],[17,4,17,5],[17,8,17,9],[25,0,25,9],[26,0,27,9],[28,0,28,9],[18,0,18,2],[18,4,18,5],[18,8,18,9],[19,0,19,9],[20,0,20,9],[35,1,35,2],[34,0,34,2],[34,3,34,9],[35,5,35,9],[15,2,15,3],[15,4,15,5],[29,0,29,9],[30,0,30,2],[31,0,31,1],[32,1,32,3],[21,0,21,9],[32,5,32,9],[33,0,33,9],[22,0,22,9],[23,0,23,9],[24,0,24,9]]}
["FORMULÁRIO DE SOLICITAÇÃO DE ACESSO"]
["MICROGERAÇÃO DISTRIBUÍDA"]
["POTÊNCIA INFERIOR A 10 KW"]
[]
["1 - Identificação da Unidade Consumidora (UC)"]
[" Código da UC:",null,754619,null,null,null,"Classe:",null,"Industrial"]
[" Titular da UC:",null,"WWF - Brasil"]
[" Logradouro:",null,"CLS 114 Bloco D Loja 35",null,null,null,"Nº:",3,"CEP:",70377540]
[" Bairro:","Asa Sul",null,null,"Cidade:","Brasília"]
[" E-mail:","relacionamento@wwf.org.br"]
[" Fone:",6136860632,null,null,"Celular:",61000000000]
[" CPF/CNPJ:",null,26990192000114]
["2 - Dados da Unidade Consumidora"]
[" Carga instalada (kW):",null,null,70,"Tensão de fase-neutro (V):",null,null,null,220]
[" Tipo conexão:",null,"Trifásico"]
[" Tipo ramal:",null,"Subterrâneo"]
["3 - Dados da Geração"]
[" Potência instalada de geração (em kW):",null,null,null,{"$f":"MD!Q97","v":20}]
[" Tipo da fonte de geração:",null,null,"Solar"]
["4 - Documentação a ser anexada"]
[" 1. ART do Responsável Técnico pelo projeto elétrico e instalação do sistema de microgeração"]
[" 2. Projeto elétrico das instalações de conexão, memorial descritivo"]
[" 3. Diagrama unifilar contemplando Geração/Proteção (inversor, se for o caso)/ Medição e memorial descritivo da instalação"]
[" 4. Certificado de conformidade do(s) inversor(es) ou número de registro da concessão do Inmetro do(s) inversor(es) para a tensão nominal de conexão com a rede"]
[" 5. Dados necessários para registro da central geradora conforme disponível no site da ANNEL: www.annel.gov.br/scg"]
[" 6. Lista de unidades consumidoras participantes do sistema de compensação (se houver) indicando a porcentagem de rateio dos créditos e o enquadramento conforme incisos VI a VIII do art. 2° da Resolução Normativa n° 482/2012."]
[" 7. Cópia de instrumento jurídico que comprove o compromisso de solidariedade entre os integrantes (se houver)"]
[]
[" 8. Documento que comprove o reconhecimento, pela ANEEL, da cogeração qualificada (se houver)."]
["5 - Contato na Distribuidora"]
[" Responsável / Área:",null,null,{"$f":"VLOOKUP(Início!$G$25,config!$A$18:$E$22,2,0)","v":"Gerência de Grandes Clientes"}]
[" Endereço:",null,{"$f":"VLOOKUP(Início!$G$25,config!$A$18:$E$22,3,0)","v":"SIA Área Especial Lote C, Guará, Distrito Federal"}]
["Fone:",{"$f":"VLOOKUP(Início!$G$25,config!A18:D22,4,0)","v":"(61) 3465-9110"},null,null,"E-mail:",{"$f":"VLOOKUP(Início!$G$25,config!$A$18:$E$22,5,0)","v":"grandesclientes@ceb.com.br"}]
["6 - Solicitante"]
[" Nome/Procurador legal:",null,null,"André Mitsuo Hamada Cerqueira"]
[" Fone:",61981217735,null,null,"E-mail:","contato@stpgreen.com.br"]
[]
[]
[]
[]
[]
[]
[]
[]
[]
[]
[]
[]
[]
[]
[]
[]
[]
[]
[]
[]
[]
[]
[]
[]
[]
[]
[]
[]
[]
[]
[]
[]
[]
[]
[]
[]
[]
[]
[]
[]
[]
[]
[]
[]
[]
[]
[]
[null,null,null,null,null,null,null,null,null,null,null,null,null,null,"Trifásico"]
[null,null,null,null,null,null,null,null,null,null,null,null,null,null,"220/380"]
[null,null,null,null,null,null,null,null,null,null,null,null,null,null,10]

{"sheet":"FSA Micro >10","index":3,"n_rows":36,"n_cols":10,"rows_kept":36,"cut":false,"hidden":false,"merged":[[25,0,25,9],[26,0,27,9],[34,0,34,2],[34,3,34,9],[28,0,28,9],[35,1,35,3],[35,5,35,9],[29,0,29,9],[30,0,30,2],[31,0,31,1],[32,1,32,3],[32,5,32,9],[33,0,33,9],[21,0,21,9],[22,0,22,9],[23,0,23,9],[24,0,24,9],[15,0,15,1],[15,2,15,3],[16,0,16,9],[17,0,17,3],[17,4,17,5],[18,0,18,2],[19,0,19,9],[20,0,20,9],[12,0,12,9],[13,0,13,2],[13,4,13,7],[13,8,13,9],[14,0,14,1],[14,2,14,3],[9,1,9,4],[9,5,9,8],[10,1,10,2],[10,5,10,8],[11,0,11,1],[11,2,11,4],[11,5,11,8],[6,0,6,1],[6,2,6,9],[7,0,7,1],[7,2,7,5],[8,1,8,3],[8,5,8,9],[0,0,0,9],[1,0,1,9],[2,0,2,9],[4,0,4,9],[5,0,5,1],[5,2,5,5],[5,6,5,7],[5,8,5,9]]}
["FORMULÁRIO DE SOLICITAÇÃO DE ACESSO"]
["MICROGERAÇÃO DISTRIBUÍDA"]
["POTÊNCIA SUPERIOR A 10 KW"]
[]
["1 - Identificação da Unidade Consumidora (UC)"]
[" Código da UC:",null,1037321,null,null,null,"Classe:",null,"Poder Público"]
[" Titular da UC:",null,"IBRAM - Instituto do Meio Ambiente e dos Recursos Hídricos do DF"]
[" Logradouro:",null,"QE 23 Lote E Sede Parque Ez. Heig",null,null,null,"Nº:",1,"CEP:",71025020]
[" Bairro:","Guará",null,null,"Cidade:","Brasília"]
[" E-mail:","gefsema@sema.df.gov.br"]
[" Fone:",61993601387,null,null,"Celular:",61999775763]
[" CPF/CNPJ:",null,8915353000123]
["2 - Dados da Unidade Consumidora"]
[" Carga instalada (kW):",null,null,29.7,"Tensão de fase-neutro (V):",null,null,null,220]
[" Tipo conexão:",null,"Trifásico"]
[" Tipo ramal:",null,"Aéreo"]
["3 - Dados da Geração"]
[" Potência instalada de geração (em kW):",null,null,null,{"$f":"MD!Q97","v":20}]
[" Tipo da fonte de geração:",null,null,"Solar"]
["4 - Documentação a ser anexada"]
[" 1. ART do Responsável Técnico pelo projeto elétrico e instalação do sistema de microgeração"]
[" 2. Projeto elétrico das instalações de conexão, memorial descritivo"]
[" 3. Diagrama unifilar contemplando Geração/Proteção (inversor, se for o caso)/ Medição e memorial  descritivo da instalação"]
["4. Certificado de conformidade do(s) inversor(es) ou número de registro da concessão do Inmetro do(s) inversor(es) para a tensão nominal de conexão com a rede"]
[" 5. Dados necessários para registro da central geradora conforme disponível no site da ANNEL: www.annel.gov.br/scg"]
[" 6. Lista de unidades consumidoras participantes do sistema de compensação (se houver) indicando a porcentagem de rateio dos créditos e o enquadramento conforme incisos VI a VIII do art. 2° da Resolução Normativa n° 482/2012."]
[" 7. Cópia de instrumento jurídico que comprove o compromisso de solidariedade entre os integrantes (se houver)"]
[]
[" 8. Documento que comprove o reconhecimento, pela ANNEL, da cogeração qualificada (se houver). "]
["5 - Contato na Distribuidora"]
[" Responsável / Área:",null,null,{"$f":"VLOOKUP(Início!$G$25,config!$A$18:$E$22,2,0)","v":"Gerência de Grandes Clientes"}]
[" Endereço:",null,{"$f":"VLOOKUP(Início!$G$25,config!$A$18:$E$22,3,0)","v":"SIA Área Especial Lote C, Guará, Distrito Federal"}]
["Fone:",{"$f":"VLOOKUP(Início!$G$25,config!A18:D22,4,0)","v":"(61) 3465-9110"},null,null,"E-mail:",{"$f":"VLOOKUP(Início!$G$25,config!$A$18:$E$22,5,0)","v":"grandesclientes@ceb.com.br"}]
["6 - Solicitante"]
[" Nome/Procurador legal:",null,null,"Nazaré Soares"]
[" Fone:",61999775763,null,null,"E-mail:","gefsema@sema.df.gov.br"]

{"sheet":"FSA Mini","index":4,"n_rows":40,"n_cols":12,"rows_kept":40,"cut":false,"hidden":false,"merged":[[38,0,38,2],[38,3,38,9],[39,1,39,3],[39,5,39,9],[33,0,33,9],[34,0,34,2],[35,0,35,1],[36,1,36,3],[36,5,36,9],[37,0,37,9],[21,0,21,3],[21,4,21,5],[15,0,15,2],[15,6,15,7],[15,8,15,9],[16,0,16,2],[17,0,17,3],[17,4,17,9],[21,8,21,9],[18,0,18,3],[18,4,18,9],[19,0,19,1],[19,2,19,3],[20,0,20,9],[32,0,32,9],[22,0,22,2],[22,4,22,5],[22,8,22,9],[23,0,23,9],[24,0,24,9],[25,0,25,9],[26,0,26,9],[27,0,27,9],[28,0,28,9],[29,0,29,9],[30,0,31,9],[12,0,12,9],[13,0,13,2],[13,4,13,7],[13,8,13,9],[14,0,14,1],[14,2,14,3],[9,1,9,4],[9,5,9,8],[10,1,10,2],[10,5,10,8],[11,0,11,1],[11,2,11,4],[11,5,11,8],[6,0,6,1],[6,2,6,9],[7,0,7,1],[7,2,7,5],[8,1,8,3],[8,5,8,9],[0,0,0,9],[1,0,1,9],[2,0,2,9],[4,0,4,9],[5,0,5,1],[5,2,5,5],[5,6,5,7],[5,8,5,9]]}
["FORMULÁRIO DE SOLICITAÇÃO DE ACESSO"]
["MINIGERAÇÃO DISTRIBUÍDA"]
[]
[]
["1 - Identificação da Unidade Consumidora (UC)"]
[" Código da UC:",null,null,null,null,null,"Classe:"]
[" Titular da UC:"]
[" Logradouro:",null,null,null,null,null,"Nº:",null,"CEP:"]
[" Bairro:",null,null,null,"Cidade:"]
[" E-mail:"]
[" Fone:",null,null,null,"Celular:"]
[" CPF/CNPJ:"]
["2 - Dados da Unidade Consumidora"]
[" Carga instalada (kW):",null,null,null,"Tensão de fase-neutro (V):",null,null,null,null,null,null,1]
[" Tipo conexão:"]
["Transformador particular:"]
["Tipo de instalação:"]
["Tipo de ligação do transformador:"]
["Impedância percentual do transformador:"]
[" Tipo ramal:"]
["3 - Dados da Geração"]
[" Potência instalada de geração (em kW):",null,null,null,{"$f":"MD!Q97","v":20}]
[" Tipo da fonte de geração:"]
["4 - Documentação a ser anexada"]
[" 1. ART do Responsável Técnico pelo projeto elétrico e instalação do sistema de microgeração"]
[" 2. Projeto elétrico das instalações de conexão, memorial descritivo"]
[" 3. Diagrama unifilar contemplando Geração/Proteção (inversor, se for o caso)/ Medição e memorial descritivo da instalação"]
[" 4. Certificado de conformidade do(s) inversor(es) ou número de registro da concessão do Inmetro do(s) inversor(es) para a tensão nominal de conexão com a rede"]
[" 5. Dados necessários para registro da central geradora conforme disponível no site da  ANEEL: www.annel.gov.br/scg"]
[" 6. Lista de unidades consumidoras participantes do sistema de compensação (se houver) indicando a porcentagem de rateio dos créditos e o enquadramento conforme incisos VI a VIII do art. 2° da Resolução Normativa n° 482/2012."]
[" 7. Cópia de instrumento jurídico que comprove o compromisso de solidariedade entre os integrantes (se houver)"]
[]
[" 8. Documento que comprove o reconhecimento, pela ANNEL, da cogeração qualificada (se houver). "]
["5 - Contato na Distribuidora"]
[" Responsável / Área:",null,null,{"$f":"VLOOKUP(Início!$G$25,config!$A$18:$E$22,2,0)","v":"Gerência de Grandes Clientes"}]
[" Endereço:",null,{"$f":"VLOOKUP(Início!$G$25,config!$A$18:$E$22,3,0)","v":"SIA Área Especial Lote C, Guará, Distrito Federal"}]
["Fone:",{"$f":"VLOOKUP(Início!$G$25,config!A18:D22,4,0)","v":"(61) 3465-9110"},null,null,"E-mail:",{"$f":"VLOOKUP(Início!$G$25,config!$A$18:$E$22,5,0)","v":"grandesclientes@ceb.com.br"}]
["6 - Solicitante"]
[" Nome/Procurador legal:"]
[" Fone:",null,null,null,"E-mail:"]

{"sheet":"MD","index":5,"n_rows":162,"n_cols":17,"rows_kept":162,"cut":false,"hidden":false,"merged":[[109,16,109,17],[99,1,99,6],[100,1,100,6],[101,1,101,6],[102,1,102,6],[106,1,106,6],[107,1,107,6],[108,1,108,6],[109,1,109,6],[102,7,102,8],[107,16,107,17],[108,16,108,17],[101,11,101,12],[104,1,104,6],[105,1,105,6],[106,7,106,8],[103,11,103,12],[104,11,104,12],[105,11,105,12],[106,11,106,12],[107,11,107,12],[105,9,105,10],[109,9,109,10],[106,9,106,10],[73,13,76,13],[99,7,99,8],[100,7,100,8],[101,7,101,8],[101,9,101,10],[78,7,78,8],[75,10,75,11],[102,9,102,10],[104,7,104,8],[73,7,73,8],[96,7,96,12],[97,11,97,12],[80,10,80,11],[73,10,73,11],[75,7,75,8],[97,7,97,8],[74,7,74,8],[98,9,98,10],[98,7,98,8],[54,9,56,9],[98,11,98,12],[100,11,100,12],[97,9,97,10],[99,11,99,12],[98,1,98,6],[100,9,100,10],[99,9,99,10],[60,3,60,5],[61,3,61,5],[62,3,62,5],[66,3,66,5],[64,3,64,5],[78,10,78,11],[76,7,76,8],[67,7,67,8],[82,10,82,11],[81,10,81,11],[81,7,81,8],[82,7,82,8],[89,1,94,12],[77,10,77,11],[76,10,76,11],[69,1,69,11],[49,2,50,11],[54,2,56,2],[53,1,53,11],[45,1,45,12],[52,1,52,11],[59,3,59,5],[35,1,35,2],[35,9,35,10],[71,6,73,6],[71,3,73,3],[71,7,71,12],[72,7,72,9],[54,6,56,6],[67,3,67,5],[37,4,37,7],[38,4,38,7],[57,3,57,5],[54,8,56,8],[54,7,56,7],[63,3,63,5],[58,3,58,5],[54,1,56,1],[54,3,56,5],[65,3,65,5],[0,1,4,3],[41,1,42,13],[37,1,37,2],[38,1,38,2],[8,1,8,13],[29,1,29,12],[35,7,35,8],[35,3,35,6],[10,2,10,7],[10,8,10,11],[1,6,1,13],[2,6,2,13],[3,6,3,13],[4,6,4,13],[5,1,5,12],[38,8,38,9],[11,2,11,7],[11,8,11,11],[34,1,34,2],[13,2,13,12],[34,9,34,10],[34,3,34,6],[14,2,27,12],[34,7,34,8],[148,1,148,7],[145,1,146,12],[139,1,142,12],[134,1,136,12],[149,1,151,12],[129,1,131,12],[161,3,161,12],[125,3,125,7],[126,3,126,7],[127,3,127,7],[127,8,127,10],[125,8,125,10],[126,8,126,10],[133,1,133,7],[138,1,138,7],[144,1,144,7],[124,3,124,7],[124,8,124,10],[108,7,108,8],[109,7,109,8],[110,1,110,6],[120,1,122,12],[119,1,119,7],[111,1,114,12],[117,1,117,12],[108,11,108,12],[105,7,105,8],[109,11,109,12],[104,9,104,10],[107,9,107,10],[107,7,107,8],[108,9,108,10],[84,3,84,5],[96,1,97,6],[71,4,73,4],[71,5,73,5],[71,2,73,2],[79,7,79,8],[80,7,80,8],[103,1,103,6],[77,7,77,8],[83,10,83,11],[74,10,74,11],[83,7,83,8],[79,10,79,11],[71,1,73,1],[102,11,102,12],[103,9,103,10],[103,7,103,8],[72,10,72,12]]}
[]
[]
[]
[]
[]
[null,"MEMORIAL DESCRITIVO DE GERAÇÃO DISTRIBUÍDA"]
[null,null,null,null,null,null,null,null,null,null,null,null,null,null,"FSA Micro >10",null,"FSA Micro <=10"]
[]
[null,"1. LOCALIZAÇÃO DA UNIDADE CONSUMIDORA"]
[]
[null,null,"Latitude",null,null,null,null,null,"Longitude",null,null,null,"PG"]
[]
[null,null,"RUA NOVA PERIMETRAL, 285, VIDA NOVA"]
[null,null,"Captura de tela evidenciando localização do empreendimento da unidade consumidora solicitante"]
[null,null,59147190]
[]
[]
[]
[]
[]
[]
[]
[]
[]
[]
[]
[]
[]
[null,null,null,84994001777]
[null,"1. CARACTERÍSTICAS DA UNIDADE CONSUMIDORA"]
[null,null,null,"pedrorochafjr@gmail.com"]
[]
[]
[null,null,null,null,null,null,null,null,null,null,null,null,null,null,"Horária Verde"]
[null,"Tipo do padrão",null,"Tensão de fase-neutro (V)",null,null,null,{"$f":"IF(OR(D36=13800,D36=34500,D36=69000),\"Modalidade tarifária\",\"\")","v":""},null,{"$f":"IF(OR(H36=\"Horária Verde\",H36=\"Horária Azul\"),\"Demanda (kW)\",\"\")","v":""},null,null,null,null,"Horária Azul"]
[null,{"$f":"O84","v":"Trifásico"},null,{"$f":"O85","v":220},null,null,null,null,null,null,null,null,null,null,"Optante B"]
[null,{"$f":"IF(B36=\"Monofásico\",1,IF(B36=\"Bifásico\",2,3))","v":3}]
[null,"Disjuntor geral (A)",null,"Fator de potência","Ramal de ligação (mm²)",null,null,null,"Potência disponibilizada (kW)"]
[null,50,null,0.9,10,null,null,null,{"$f":"IFERROR(IF(H36=\"Optante B\",75,IF(OR(H36=\"Horária Verde\",H36=\"Horária Azul\"),J36,B37*D36*B39*D39/1000)),\"\")","v":29.7}]
[]
[]
[null,{"$f":"IF(AND(B33=\"Sim\",K33<>\"\"),\"Os valores estão considerando a solicitação de aumento de potência disponibilizada contemplado na solicitação nº \"&K33&\".\",\"\")","v":""}]
[]
[]
[null,null,null,0]
[null,"2. CARACTERÍSTICAS DA GERAÇÃO DA UNIDADE CONSUMIDORA"]
[]
[null,null,"Preencha as tabelas abaixo respeitando a correspondência entre os módulos e os inversores."]
[]
[null,null,"Por exemplo: se a usina for composta por duas strings, uma conectada a um inversor A e outra a um inversor B, preencha as tabelas fazendo a associação com os números das linhas."]
[]
[]
[null,"Estrutura do(s) gerador(es) utilizado(s) na usina"]
[]
[null,"Nº","Modelo do(s) gerador(es)","Fabricante",null,null,"Área (m²)","Qtd.","Potência de cada módulo (kW)","Subtotal (kW)"]
[]
[]
[null,1,"CSI CANADIAN SOLAR CS3W-450MS","Canadian Solar",null,null,100,50,0.45,{"$f":"IF(OR(H58=\"\",I58=\"\"),\"\",I58*H58)","v":22.5}]
[null,2,null,null,null,null,null,null,null,""]
[null,3,null,null,null,null,null,null,null,""]
[null,4,null,null,null,null,null,null,null,""]
[null,5,null,null,null,null,null,null,null,""]
[null,6,null,null,null,null,null,null,null,""]
[null,7,null,null,null,null,null,null,null,""]
[null,8,null,null,null,null,null,null,null,""]
[null,9,null,null,null,null,null,null,null,""]
[null,10,null,null,null,null,null,null,null,""]
[null,null,null,"Área total (m²)",null,null,{"$f":"SUM(G58:G67)","v":100},"Potência total (kW)",null,{"$f":"SUM(J58:J67)","v":22.5}]
[null,null,null,null,null,null,null,{"$f":"SUM(H58:H67)","v":50}]
[null,"Estrutura do(s) inversor(es) utilizado(s) na usina",null,null,null,null,null,null,null,null,null,null,null,null,{"$f":"J68","v":22.5}]
[null,null,null,null,null,null,null,null,null,null,null,null,null,null,{"$f":"G85","v":20}]
[null,"Nº","Conectados ao(s) inversor(es)","Fabricante","Qtd.","Potência (kW)","Subtotal (kW)","Proteções",null,null,null,null,null,null,{"$f":"SMALL(O70:O71,1)","v":20}]
[null,null,null,null,null,null,null,"Corrente contínua",null,null,"Corrente alternada"]
[null,null,null,null,null,null,null,"Tipo de proteção",null,"(A)","Tipo de proteção",null,"(A)",{"$f":"IF(D86>0,\"Existe(m) inversor(es) não catalogado(s) na lista. Você deve enviar o(s) respectivo(s) certificado(s) para validação.\",\"\")","v":""}]
[null,1,"SYMO 20.0-3-M",{"$f":"IFERROR(INDEX(Modelos!B:C,MATCH(MD!C75,Modelos!C:C,0),1),\"\")","v":"Fronius "},1,20,{"$f":"IF(F75=\"\",\"\",F75*E75)","v":20},"Integrada ao inversor",null,15,"Disjuntor",null,40]
[null,2,null,{"$f":"IFERROR(INDEX(Modelos!B:C,MATCH(MD!C76,Modelos!C:C,0),1),\"\")","v":""},null,null,{"$f":"IF(F76=\"\",\"\",F76*E76)","v":""}]
[null,3,null,{"$f":"IFERROR(INDEX(Modelos!B:C,MATCH(MD!C77,Modelos!C:C,0),1),\"\")","v":""},null,null,""]
[null,4,null,{"$f":"IFERROR(INDEX(Modelos!B:C,MATCH(MD!C78,Modelos!C:C,0),1),\"\")","v":""},null,null,""]
[null,5,null,{"$f":"IFERROR(INDEX(Modelos!B:C,MATCH(MD!C79,Modelos!C:C,0),1),\"\")","v":""},null,null,""]
[null,6,null,{"$f":"IFERROR(INDEX(Modelos!B:C,MATCH(MD!C80,Modelos!C:C,0),1),\"\")","v":""},null,null,""]
[null,7,null,{"$f":"IFERROR(INDEX(Modelos!B:C,MATCH(MD!C81,Modelos!C:C,0),1),\"\")","v":""},null,null,""]
[null,8,null,{"$f":"IFERROR(INDEX(Modelos!B:C,MATCH(MD!C82,Modelos!C:C,0),1),\"\")","v":""},null,null,""]
[null,9,null,{"$f":"IFERROR(INDEX(Modelos!B:C,MATCH(MD!C83,Modelos!C:C,0),1),\"\")","v":""},null,null,"",null,null,null,null,null,null,null,"Demanda contr. (kW)"]
[null,10,null,{"$f":"IFERROR(INDEX(Modelos!B:C,MATCH(MD!C84,Modelos!C:C,0),1),\"\")","v":""},null,null,"",null,null,null,null,null,null,null,"Trifásico"]
[null,null,null,"Potência total (kW)",null,null,{"$f":"SUM(G75:G84)","v":20},null,null,null,null,null,null,null,220]
[null,null,null,{"$f":"COUNTIFS(D75:D84,\"\",C75:C84,\"<>\")","v":0},{"$f":"SUM(E75:E84)","v":1}]
[]
[null,"4.3 Certificação"]
[]
[null,"De acordo com o PRODIST, Módulo 3, Seção 3.7 e Item 4.3.1:\n\n“Para o caso de sistemas que se conectam à rede por meio de inversores, o acessante deve apresentar certificados atestando que os inversores foram ensaiados e aprovados conforme normas técnicas brasileiras ou normas internacionais, ou o número de registro da concessão do Inmetro para o modelo e a tensão nominal de conexão constantes na solicitação de acesso, de forma a atender aos requisitos de segurança e qualidade”.\n\nOs requisitos de segurança e qualidade citados são:"]
[]
[]
[]
[]
[]
[null,null,null,null,null,null,null,null,null,null,null,null,null,null,null,null,"Limite de injeção (kW)"]
[null,"EQUIPAMENTO",null,null,null,null,null,"POTÊNCIA INSTALADA",null,null,null,null,null,null,null,null,{"$f":"SMALL(O70:O71,1)","v":20}]
[null,null,null,null,null,null,null,"≤ 75 kW",null,"> 75 kW e ≤ 500 kW",null,"> 500 kW e ≤ 5 MW"]
[null,"Elemento de desconexão",null,null,null,null,null,"Sim",null,"Sim",null,"Sim"]
[null,"Elemento de interrupção",null,null,null,null,null,"Sim",null,"Sim",null,"Sim"]
[null,"Transformador de acoplamento",null,null,null,null,null,"Não",null,"Sim",null,"Sim"]
[null,"Proteção de sub e sobretensão",null,null,null,null,null,"Sim",null,"Sim",null,"Sim"]
[null,"Proteção de sub e sobrefreqüência",null,null,null,null,null,"Sim",null,"Sim",null,"Sim"]
[null,"Proteção contra desequilíbrio de corrente",null,null,null,null,null,"Não",null,"Não",null,"Sim"]
[null,"Proteção contra desbalanço de tensão",null,null,null,null,null,"Não",null,"Não",null,"Sim",null,null,null,null,"Média tensão"]
[null,"Sobrecorrente direcional",null,null,null,null,null,"Não",null,"Sim",null,"Sim",null,null,null,null,13800]
[null,"Sobrecorrente com restrição de tensão",null,null,null,null,null,"Não",null,"Não",null,"Sim"]
[null,"Relé de sincronismo",null,null,null,null,null,"Sim",null,"Sim",null,"Sim",null,null,null,null,"Trifásico"]
[null,"Anti-ilhamento",null,null,null,null,null,"Sim",null,"Sim",null,"Sim",null,null,null,null,"220/380"]
[null,"Medição",null,null,null,null,null,"Sistema Medição Bidirecional",null,"Medidor 4 Quadrantes",null,"Medidor 4 Quadrantes",null,null,null,null,10]
[]
[null,"No entanto, além das normas da ANEEL, deve ser observada a determinação do Inmetro para a fabricação e a importação de inversores de até 10 kW a partir de 01/03/2016 (Art. 8º da Portaria nº357/2014, com redação dada pela Portaria nº17/2016):\n\n“Art. 8º Determinar que a partir de 1° de março de 2016, os inversores para sistemas fotovoltaicos conectados à rede, contemplados na parte 2, do ANEXO III, deverão ser fabricados e importados somente em conformidade com os requisitos da Portaria Inmetro nº 004/2011 e devidamente registrados no Inmetro.”\n"]
[]
[]
[]
[]
[]
[null,"5. REQUISITOS DE SEGURANÇA"]
[]
[null,"5.1 Variação de tensão e frequência"]
[null,"O sistema de geração distribuída deve perceber uma condição anormal de tensão e cessar o fornecimento à rede. As seguintes condições devem ser cumpridas com tensões eficazes medidas no ponto de conexão:"]
[]
[]
[]
[null,null,null,"Tensão ponto de conexão comum\n(% em relação à V nominal)",null,null,null,null,"Tempo máximo de desligamento"]
[null,null,null,"V < 80 %",null,null,null,null," 0,4 s"]
[null,null,null,"80 % ≤ V ≤ 110 % ",null,null,null,null,"Regime normal de operação"]
[null,null,null,"110 % < V ",null,null,null,null,"0,2 s"]
[]
[null,"Quando a frequência da rede assumir valores abaixo de 57,5 Hz, o sistema de geração distribuída irá cessar o fornecimento de energia à rede elétrica em até 0,2 s. O sistema somente deve voltar a fornecer energia à rede quando a frequência retornar para 59,9 Hz, respeitando o tempo de reconexão."]
[]
[]
[]
[null,"5.2 Proteção contra ilhamento"]
[null,"Para prevenir o ilhamento, o sistema fotovoltaico conectado à rede irá cessar o fornecimento de energia à rede, independentemente das cargas ligadas ou outros geradores distribuídos."]
[]
[]
[]
[null,"5.3 Reconexão"]
[null,"Depois de uma “desconexão” devido a uma condição anormal da rede, o sistema de microgeração não irá retomar o fornecimento de energia à rede elétrica (reconexão) por ummínimo de 180 segundos após a retomada das condições normais de tensão e frequência da rede."]
[]
[]
[]
[]
[null,"5.4 Aterramento"]
[null,"O sistema de geração distribuída deve está conectado ao sistema de aterramento da unidade consumidora."]
[]
[]
[null,"5.5 Sinalização de segurança"]
[null,"Será instalada no ponto de conexão, junto ao padrão de entrada, sinalização indicativa da existência na unidade consumidora de geração própria através de placa de advertência com os seguintes dizeres:"]
[]
[]
[]
[]
[]
[]
[]
[]
[]
[]
[]
[null,null,null,"\"CUIDADO – RISCO DE CHOQUE ELÉTRICO – GERAÇÃO PRÓPRIA\""]

{"sheet":"DU","index":6,"n_rows":31,"n_cols":11,"rows_kept":31,"cut":false,"hidden":false,"merged":[[0,2,2,6],[23,7,24,10],[22,4,22,7],[23,5,23,6],[20,0,20,1],[24,0,24,2],[11,6,12,8],[4,10,4,11],[10,10,10,11],[23,0,23,2],[21,0,21,1],[29,6,29,8],[27,0,27,2],[30,0,30,2],[25,0,25,2],[26,0,26,2],[28,0,28,2],[29,0,29,2],[30,6,30,8],[28,5,28,8]]}
[null,null,"Rede de distribuição de 220 V"]
[]
[]
[]
[null,null,null,null,null,null,null,null,null,null,"Acessada"]
[]
[]
[]
[null,null,null,null,"Disjuntor de entrada"]
[null,null,null,null,{"$f":"MD!$B$39&\" A\"","v":"50 A"}]
[null,null,null,null,null,null,null,null,null,null,"Acessante"]
[null,null,null,null,null,null,"Padrão de entrada"]
[]
[]
[]
[]
[]
[]
[]
[]
["Proteção CA"]
[{"$f":"IF(A25=\"Múltiplos inversores\",\"Múltiplos inversores\",MD!M75&\" A\")","v":"40 A"}]
[null,null,null,null,"Proteção CC"]
["Inversor(es)",null,null,null,null,{"$f":"IF(A25=\"Múltiplos inversores\",\"Múltiplos inversores\",MD!J75&\" A\")","v":"15 A"},null,"Cargas"]
[{"$f":"IF(COUNTA(MD!C75:C84)>1,\"Múltiplos inversores\",MD!C75)","v":"SYMO 20.0-3-M"}]
[{"$f":"IF(COUNTA(MD!C75:C84)>1,\"\",MD!D75)","v":"Fronius "}]
[]
[]
[null,null,null,null,null,"Sistema de geração com",null,null,null,{"$f":"IF(COUNTA(MD!C58:C67)>1,\"Múltiplos modelos\",MD!H58)","v":50}]
[null,null,null,null,null,null,"módulos da marca",null,null,{"$f":"IF(G30=\"módulos da marca\",MD!D58,\"\")","v":"Canadian Solar"}]
[null,null,null,null,null,null,{"$f":"IF(J30=\"\",\"\",\"modelo\")","v":"modelo"},null,null,{"$f":"IF(G31=\"modelo\",MD!C58,\"\")","v":"CSI CANADIAN SOLAR CS3W-450MS"}]

{"sheet":"Dados","index":7,"n_rows":108,"n_cols":15,"rows_kept":108,"cut":false,"hidden":false,"merged":[[79,0,79,2],[71,0,71,3],[71,4,71,7],[73,3,73,7],[73,0,73,2],[75,0,75,2],[77,0,77,2],[77,3,77,8],[60,0,60,2],[62,0,62,2],[46,0,46,2],[48,0,48,2],[50,0,50,2],[52,0,52,2],[54,0,54,2],[56,0,56,2],[58,0,58,2],[48,3,48,8],[56,3,56,8],[54,3,54,8],[46,3,46,8],[24,3,24,7],[26,3,26,9],[28,3,28,7],[30,3,30,7],[34,2,34,9],[36,2,36,7],[38,2,38,3],[42,0,42,2],[44,0,44,2],[12,2,12,9],[14,2,14,3],[6,3,6,7],[10,3,10,8],[0,3,2,9],[6,1,6,2],[8,1,8,2],[10,0,10,2],[4,0,4,9]]}
[null,null,null,"Dados que deverão ser encaminhados à Distribuidora para registro da unidade consumidora no sistema de compensação de energia regido pela REN 482, de 17 de abril de 2012."]
[]
[]
[]
[{"$f":"\"   CENTRAL GERADORA \"&IF(K5=\"Solar\",\"SOLAR FOTOVOLTAICA:\",IF(K5=\"Eólica\",\"EÓLICA\",\"\"))","v":"   CENTRAL GERADORA SOLAR FOTOVOLTAICA:"},null,null,null,null,null,null,null,null,null,"Solar"]
[]
["Modalidade:","Geração na própria UC",null,"Quantidade UCs que recebem os créditos:",null,null,null,null,1]
[]
["Classe:","Poder Público",null,"Subgrupo:",{"$f":"IF(B9=\"Residencial\",\"B1\",IF(OR(B9=\"Comercial\",B9=\"Industrial\",B9=\"Poder Público\",B9=\"Iluminação pública\",B9=\"Serviço Público\"),\"B3\",IF(B9=\"Rural\",\"B2\",\"\")))","v":"B3"}]
[]
["Município/UF da UC com GD:",null,null,"Brasília"]
[]
["Endereço da UC com GD:",null,"QE 23 Lote E Sede Parque Ez. Heig, 1, Guará"]
[]
["CEP da UC com GD:",null,71025020]
[]
["Coordenadas geodésicas (SIRGAS2000) da localização da usina em Grau, Minuto e Segundo:"]
[]
[null,null,"Grau º","Minuto '","Segundo ''"]
[null,"Latitude  ",15,50,7]
[null,"Longitude  ",47,58,10]
[]
["   TITULAR:"]
[]
["CPF/CNPJ do Titular da UC com GD:",null,null,8915353000123]
[]
["Nome do Titular da UC com GD:",null,null,"IBRAM - Instituto do Meio Ambiente e dos Recursos Hídricos do DF"]
[]
["Telefone do Titular (DDD + número):",null,null,61999775763]
[]
["E-mail do Titular da UC com GD:",null,null,"gefsema@sema.df.gov.br"]
[]
[null,"Dados do titular para correspondência:"]
[]
[null,"Endereço:","QE 23 Lote E Sede Parque Ez. Heig, 1, Guará"]
[]
[null,"Município:","Brasília"]
[]
[null,"CEP:",71025020]
[]
["   DADOS DA CENTRAL GERADORA:"]
[]
[{"$f":"IF(K5=\"Solar\",\"Potência Total dos Módulos (kW):\",\"Potência Instalada (kW):\")","v":"Potência Total dos Módulos (kW):"},null,null,22.5]
[]
[{"$f":"IF(K5=\"Solar\",\"Quantidade de Módulos:\",\"\")","v":"Quantidade de Módulos:"},null,null,50]
[]
[{"$f":"\"Modelo(s) dos \"&IF(K5=\"Solar\",\"Módulos:\",\"Aerogeradores:\")","v":"Modelo(s) dos Módulos:"},null,null,"CSI CANADIAN SOLAR CS3W-450MS",null,null,null,null,null,null,null,"Vertical"]
[null,null,null,null,null,null,null,null,null,null,null,"Horizontal"]
[{"$f":"\"Fabricante(s) dos \"&IF(K5=\"Solar\",\"Módulos:\",\"Aerogeradores:\")","v":"Fabricante(s) dos Módulos:"},null,null,"Canadian Solar"]
[]
[{"$f":"IF(K5=\"Solar\",\"Potência Total dos Inversores (kW):\",\"Eixo do rotor:\")","v":"Potência Total dos Inversores (kW):"},null,null,20]
[]
[{"$f":"IF(K5=\"Solar\",\"Quantidade de Inversores:\",\"\")","v":"Quantidade de Inversores:"},null,null,1]
[]
[{"$f":"IF(K5=\"Solar\",\"Modelo(s) dos Inversores:\",\"Altura da pá (m):\")","v":"Modelo(s) dos Inversores:"},null,null,"SYMO 20.0-3-M"]
[]
[{"$f":"IF(K5=\"Solar\",\"Fabricante(s) dos Inversores:\",\"\")","v":"Fabricante(s) dos Inversores:"},null,null,"Fronius "]
[]
[{"$f":"IF(K5=\"Solar\",\"Área Total dos Arranjos (m²):\",\"\")","v":"Área Total dos Arranjos (m²):"},null,null,100]
[]
["Dt. implantação unidade geradora:"]
[]
["Dt. conexão und. geradora na Distr.:",null,null,"-"]
[]
[]
[]
[]
[]
["   Preencha os próximos dados somente se  a usina possuiu Outorga ou Registro"]
["   Se não aplicável, mantenha os campos vazios:"]
[]
["CEG do empreendimento - GGG.FF.999999-9.VV:"]
[]
["Nome da Usina:"]
[]
["Tipo do ato de Outorga ou Registro:",null,null,null,null,null,null,null,null,null,null,"Vertical"]
[null,null,null,null,null,null,null,null,null,null,null,"Horizontal"]
["Nº do ato de Outorga ou Registro:"]
[]
["Ano do ato de Outorga ou Registro:"]
[]
[]
[]
[]
[]
[]
[]
[]
[]
[]
[]
[]
[]
[]
[]
[]
[]
[]
[]
[]
[]
[]
[]
[]
[]
[null,null,null,null,null,null,null,null,null,null,null,null,null,null,"Trifásico"]
[null,null,null,null,null,null,null,null,null,null,null,null,null,null,"220/380"]
[null,null,null,null,null,null,null,null,null,null,null,null,null,null,10]

{"sheet":"Fim","index":8,"n_rows":16,"n_cols":2,"rows_kept":16,"cut":false,"hidden":false,"merged":[[15,1,18,8],[3,7,4,10],[5,1,12,8]]}
[]
[]
[]
[]
[]
[null,"Pronto!"]
[]
[]
[]
[]
[]
[]
[]
[]
[]
[null,"Clique em finalizar para salvar tudo ou em voltar para rever os documentos"]

{"sheet":"Modelos","index":9,"n_rows":930,"n_cols":5,"rows_kept":930,"cut":false,"hidden":false,"merged":[[1,1,1,2]]}
[]
[null,"Use o filtro ou CTRL+L para pesquisar os inversores"]
[]
[null,"FABRICANTE","MODELO","POTÊNCIA"]
[null,"ABB","PRO-33.0-TL-OUTD-400",33,{"$f":"B5","v":"ABB"}]
[null,"ABB","PRO-33.0-TL-OUTD-S400",33,"ABB"]
[null,"ABB","PRO-33.0-TL-OUTD-SX400",33,"ABB"]
[null,"ABB","PVI 10.0-TL-OUTD",11,"ABB"]
[null,"ABB","PVI 10.0-TL-OUTD-FS",11,"ABB"]
[null,"ABB","PVI 10.0-TL-OUTD-S",11,"ABB"]
[null,"ABB","PVI 12.5-TL-OUTD",6,"ABB"]
[null,"ABB","PVI 12.5-TL-OUTD-FS",13.8,"ABB"]
[null,"ABB","PVI 12.5-TL-OUTD-S ",13.8,"ABB"]
[null,"ABB","PVI 3.0-TL-OUTD",3,"ABB"]
[null,"ABB","PVI 3.0-TL-OUTD-S",3,"ABB"]
[null,"ABB","PVI 3.6-TL-OUTD",3.6,"ABB"]
[null,"ABB","PVI 3.8-TL-OUTD",3.8,"ABB"]
[null,"ABB","PVI 4.2-TL-OUTD",4.2,"ABB"]
[null,"ABB","PVI 4.6-TL-OUTD",4.5999999999999996,"ABB"]
[null,"ABB","PVI 5000-TL-OUTD",10,"ABB"]
[null,"ABB","PVI 6000-TL-OUTD",12.11,"ABB"]
[null,"ABB","PVI-3.0-TL-OUTD-S",3,"ABB"]
[null,"ABB","PVI-3.6-TL-OUTD-S",3.6,"ABB"]
[null,"ABB","PVI-4.2-TL-OUTD-S",4.2,"ABB"]
[null,"ABB","PVI-5000-TL-OUTD-S",5,"ABB"]
[null,"ABB","PVI-55.0",55,"ABB"]
[null,"ABB","PVI-6000-TL-OUTD-S",6,"ABB"]
[null,"ABB","TRIO 5.8-TL-OUTD",5.8,"ABB"]
[null,"ABB","TRIO 7.5-TL-OUTD",7.5,"ABB"]
[null,"ABB","TRIO 8.5-TL-OUTD",8.5,"ABB"]
[null,"ABB","TRIO-20.0-TL-OUTD-400",20,"ABB"]
[null,"ABB","TRIO-20.0-TL-OUTD-S2-400",20,"ABB"]
[null,"ABB","TRIO-20.0-TL-OUTD-S2F-400",20,"ABB"]
[null,"ABB","TRIO-20.0-TL-OUTD-S2X-400",20,"ABB"]
[null,"ABB","TRIO-60.0-TL-OUTD-480",60,"ABB"]
[null,"ABB","TRIO-TM-50.0",50,"ABB"]
[null,"ABB","TRIO-TM-50.0-400",50,"ABB"]
[null,"ABB","TRIO-TM-60.0",60,"ABB"]
[null,"ABB","UNO 2.0-I-OUTD",2,"ABB"]
[null,"ABB","UNO 2.5-I-OUTD",2.5,"ABB"]
[null,"ABB","UNO 3.0-TL-OUTD-S",3,"ABB"]
[null,"ABB","UNO DM-4.0-TL-PLUS",4,"ABB"]
[null,"ABB","UNO DM-4.6-TL-PLUS-SB",4.5999999999999996,"ABB"]
[null,"ABB","UNO DM-5.0-TL-PLUS",5,"ABB"]
[null,"ABB","UNO DM-5.0-TL-PLUS-SB",5,"ABB"]
[null,"ABB","UNO DM-6.0-TL-PLUS",6,"ABB"]
[null,"ABB","UNO-2.0-TL-OUTD-S ",2,"ABB"]
[null,"ABB","UNO-DM-3.3-TL-PLUS-SB",3.3,"ABB"]
[null,"ABB","TRIO 20.0- TL-OUTD",20,"ABB"]
[null,"ABB","TRIO 27.6- TL-OUTD",27.6,"ABB"]
[null,"ABB","TRIO 50.0- TL-OUTD",50,"ABB"]
[null,"ABB","TRIO-33.0-TL-OUTD",33,"ABB"]
[null,"ABB","PRO-33.0-TL-OUTD-S-400",33,"ABB"]
[null,"ABB","PRO-33.0-TL-OUTD-SX-400",33,"ABB"]
[null,"ABB","PVI-12.5-TL-OUTD",12.5,"ABB"]
[null,"ABB","PVS-50-TL",50,"ABB"]
[null,"ABB","PVS-50-TL-S",50,"ABB"]
[null,"ABB","PVS-50-TL-SX",50,"ABB"]
[null,"ABB","PVS-50-TL-SX2",50,"ABB"]
[null,"ABB","PVS-60-TL",60,"ABB"]
[null,"ABB","PVS-60-TL-S",60,"ABB"]
[null,"ABB","PVS-60-TL-SX2",60,"ABB"]
[null,"ABB","PVS 100-TL",100,"ABB"]
[null,"ABB","PVS 120-TL",120,"ABB"]
[null,"ABB","PVS 175-TL",175,"ABB"]
[null,"ABB ","PRO-33.0-TL-OUTD-400 ",33,"ABB "]
[null,"ABB ","PRO-33.0-TL-OUTD-S-400 ",33,"ABB "]
[null,"ABB ","PRO-33.0-TL-OUTD-SX-400 ",33,"ABB "]
[null,"ABB ","PVI 12.5-TL-OUTD ",12.5,{"$f":"B69","v":"ABB "}]
[null,"ABB ","PVI-10.0-TL-OUTD",10.3,"ABB "]
[null,"ABB ","PVI-10.0-TL-OUTD-FS",10.3,"ABB "]
[null,"ABB ","PVI-10.0-TL-OUTD-S",10.3,"ABB "]
[null,"ABB ","PVS-100-TL",100,"ABB "]
[null,"ABB ","PVS-100-TL-SX2-FULL",100,"ABB "]
[null,"ABB ","PVS-50-TL(-S)(-SX)(-SX2) ",50,"ABB "]
[null,"ABB ","PVS-60-TL(-S)(-SX)(-SX2)",60,"ABB "]
[null,"ABB ","TRIO 20.0-TL-OUTD",20,"ABB "]
[null,"ABB ","TRIO 27.6-TL-OUTD",27.6,"ABB "]
[null,"ABB ","TRIO 50.0-TL-OUTD",50,"ABB "]
[null,"ABB ","TRIO-33.0-TL-OUTD ",33,"ABB "]
[null,"AFORE","BNT027KTL",27,"AFORE"]
[null,"Afore","BNT015KTL",15,"Afore"]
[null,"Afore","BNT017KTL",17,"Afore"]
[null,"Afore","BNT020KTL",20,"Afore"]
[null,"Afore","BNT025KTL",25,"Afore"]
[null,"APSYSTEMS","QS1",1.2,"APSYSTEMS"]
[null,"APSYSTEMS","YC1000-3",1,"APSYSTEMS"]
[null,"APsystems","YC1000-3-220",1,"APsystems"]
[null,"APSYSTEMS","YC500-3",0.5,"APSYSTEMS"]
[null,"APsystems","YC500A",0.5,"APsystems"]
[null,"APSYSTEMS","YC600-3",0.6,"APSYSTEMS"]
[null,"APSYSTEMS","YC600",0.6,"APSYSTEMS"]
[null,"APSYSTEMS","QS1A",1.5,"APSYSTEMS"]
[null,"APSYSTEMS","YC1000",1,"APSYSTEMS"]
[null,"B&B Power","SF1600TL",1.6,"B&B Power"]
[null,"B&B POWER","SF3000TL",3,"B&B POWER"]
[null,"B&B POWER","SF3K-TN",3,"B&B POWER"]
[null,"B&B POWER","SF5000TL",5,"B&B POWER"]
[null,"B&B POWER","SF5K-TN",5,"B&B POWER"]
[null,"B&B Power ","ST 12000TL ",12,"B&B Power "]
[null,"B&B Power ","ST 20000TL ",20,"B&B Power "]
[null,"B&B Power / MOSO","ST 15000TL",15,"B&B Power / MOSO"]
[null,"B&B Power / MOSO","ST 17000TL",17,"B&B Power / MOSO"]
[null,"B&B\nPower/MOSO/Renovigi","ST 12000TL",12,"B&B\nPower/MOSO/Renovigi"]
[null,"B&B\nPower/MOSO/Renovigi ","ST 20000TL",20,"B&B\nPower/MOSO/Renovigi "]
[null,"Canadian","CSI-20KTL-GI-FL",20,"Canadian"]
[null,"Canadian","CSI-25KTL-GI-FL",25,"Canadian"]
[null,"Canadian","CSI-30KTL-GI-FL",30,"Canadian"]
[null,"Canadian","CSI-50KTL-GI = SOLIS 50K",50,"Canadian"]
[null,"Canadian","CS-100KTL-GI-E",100,"Canadian"]
[null,"Canadian","CS-125KTL-GI-E",125,"Canadian"]
[null,"canadian Solar","CSI-1.5KTL1P-GI-FL","1.5","canadian Solar"]
[null,"canadian Solar","CSI-10KTL1P-GI-FL",10,"canadian Solar"]
[null,"canadian Solar","CSI-1KTL1P-GI-FL",1,"canadian Solar"]
[null,"canadian Solar","CSI-2.5KTL1P-GI-FL","2.5","canadian Solar"]
[null,"canadian Solar","CSI-2KTL1P-GI-FL",2,"canadian Solar"]
[null,"canadian Solar","CSI-3KTL1P-GI-FL",3,"canadian Solar"]
[null,"CANADIAN SOLAR","CSI-40K-GI-FL",40,"CANADIAN SOLAR"]
[null,"Canadian Solar","CSI-40KTL-GI-HFL",40,"Canadian Solar"]
[null,"canadian Solar","CSI-4KTL1P-GI-FL",4,"canadian Solar"]
[null,"CANADIAN SOLAR","CSI-50K-GI-FL",50,"CANADIAN SOLAR"]
[null,"Canadian Solar","CSI-50KTL-GI",50,"Canadian Solar"]
[null,"canadian Solar","CSI-5KTL1P-GI-FL",5,"canadian Solar"]
[null,"canadian Solar","CSI-700TL1P-GI-FL","0.7","canadian Solar"]
[null,"canadian Solar","CSI-7KTL1P-GI-FL",7,"canadian Solar"]
[null,"canadian Solar","CSI-8KTL1P-GI-FL",8,"canadian Solar"]
[null,"canadian Solar","CSI-9KTL1P-GI-FL",9,"canadian Solar"]
[null,"CANADIAN SOLAR","CSI-9K-TL1P-GI-FL",9,"CANADIAN SOLAR"]
[null,"CANADIAN SOLAR","CSI 8.0KTL1P-GI-FL",8,"CANADIAN SOLAR"]
[null,"Canadian Solar Inc","CSI-1.5K-TL",1.6,"Canadian Solar Inc"]
[null,"Canadian Solar Inc","CSI-3K-TL",3,"Canadian Solar Inc"]
[null,"Canadian Solar Inc","CSI-5K-MTL",5,"Canadian Solar Inc"]
[null,"CANADINA","CSI-40KTL-GI-FL",40,{"$f":"B133","v":"CANADINA"}]
[null,"Chint Power","CPS SCA 10KTL-T/EU",10,"Chint Power"]
[null,"Chint Power","CPS SCA 12KTL",12,"Chint Power"]
[null,"Chint Power","CPS SCA 15KTL-T/EU",15,"Chint Power"]
[null,"Chint Power","CPS SCA 17KTL-T",17,"Chint Power"]
[null,"Chint Power","CPS SCA 20KTL-T",20,"Chint Power"]
[null,"Chint Power","CPS SCA 22KTL-T",22,"Chint Power"]
[null,"Chint Power","CPS SCA 25KTL",25,"Chint Power"]
[null,"Chint Power","CPS SCA 30KTL-T/EU",30,"Chint Power"]
[null,"Chint Power","CPS SCA 50KTL",50,"Chint Power"]
[null,"Chint Power","CPS SCA 50KTL-T/EU",50,"Chint Power"]
[null,"Chint Power","CPS SCA 60KTL-T/EU",60,"Chint Power"]
[null,"Chint Power","CPS SCA 500KTL-H",500,"Chint Power"]
[null,"Chint Power","CPS SCA 1000KTL-H",1000,"Chint Power"]
[null,"Chint Power ","CPS SCA 12KTL ",12,"Chint Power "]
[null,"Chint Power ","CPS SCA 20KTL ",20,"Chint Power "]
[null,"Chint Power ","CPS SCA 25KTL ",25,"Chint Power "]
[null,"CR2 MAXX","SUN 1300G",1.36,"CR2 MAXX"]
[null,"DEYE","SUN8KG",8,"DEYE"]
[null,"DEYE","SUN5KG",5,"DEYE"]
[null,"DEYE","SUN3KG",3,"DEYE"]
[null,"DEYE","SUN60KG",60,"DEYE"]
[null,"DEYE","SUN1300G",1.3,"DEYE"]
[null,"DEYE","SUN-5K-G",5,"DEYE"]
[null,"DEYE","SUN-6K-G",6,"DEYE"]
[null,"DEYE","SUN-10K-G",10,"DEYE"]
[null,"DEYE","SUN-12K-G",12,"DEYE"]
[null,"DEYE","SUN-15K-G",15,"DEYE"]
[null,"DEYE","SUN-20K-G",20,"DEYE"]
[null,"DEYE","SUN-25K-G",25,"DEYE"]
[null,"DEYE","SUN-12K-G02",12,"DEYE"]
[null,"DEYE","SUN-15K-G02",15,"DEYE"]
[null,"DEYE","SUN-20K-G02",20,"DEYE"]
[null,"DEYE","SUN-60K-G",60,"DEYE"]
[null,"DEYE","SUN-70K-G",70,"DEYE"]
[null,"DEYE","SUN-75K-G",75,"DEYE"]
[null,"DEYE","SUN-80K-G",80,"DEYE"]
[null,"DEYS","SUN4KG",4,"DEYS"]
[null,"Duraluxe","DS 1500TL",1.5,"Duraluxe"]
[null,"Duraluxe","DS 2000TL",2,"Duraluxe"]
[null,"Duraluxe","DS 2800TL",2.8,"Duraluxe"]
[null,"DURALUXE","DS2800TL",2.8,"DURALUXE"]
[null,"EAST","EA33KTLSI",33,"EAST"]
[null,"EAST","EA3KSI",3,"EAST"]
[null,"EAST","EA5KSI - INVERSOR ON GRID MONOFASICO - 200 VAC ",5,"EAST"]
[null,"EcoSolys","ecos-1000",1,"EcoSolys"]
[null,"Ecosolys","ECOS-2000",2,"Ecosolys"]
[null,"Ecosolys","ES GT-05K",5,"Ecosolys"]
[null,"Ecosolys","ES GT-12K",12,"Ecosolys"]
[null,"Ecosolys","ES GT-15K",15,"Ecosolys"]
[null,"EDGE","SE - 100K",100,"EDGE"]
[null,"EDGE","SE - 17K",17,"EDGE"]
[null,"EDGE","SE - 25K",25,"EDGE"]
[null,"EDGE","SE - 27.6K",27.6,"EDGE"]
[null,"EDGE","SE - 33.3K",33.299999999999997,"EDGE"]
[null,"EDGE","SE - 55K",55,"EDGE"]
[null,"EDGE","SE - 75K",75,"EDGE"]
[null,"EDGE","SE - 82.8K",82.8,"EDGE"]
[null,"EDGE","SE3680H",3.68,"EDGE"]
[null,"ELGIN","ELGIN1300",1.3,"ELGIN"]
[null,"ELGIN","SUN-3K-G",3,"ELGIN"]
[null,"ELGIN","SUN-8K-G",8,"ELGIN"]
[null,"ELGIN","SUN-30K-G",30,"ELGIN"]
[null,"ELGIN","SUN-33K-G",33,"ELGIN"]
[null,"ELGIN","SUN-35K-G",35,{"$f":"B197","v":"ELGIN"}]
[null,"ELGIN","SUN-40K-G",40,"ELGIN"]
[null,"ELGIN","SUN-50K-G",50,"ELGIN"]
[null,"FRONIUS","Eco 25.0-3-S",25,"FRONIUS"]
[null,"FRONIUS","Eco 27.0-3-S",27,"FRONIUS"]
[null,"Fronius","Fronius Primo 3.0-1",3,"Fronius"]
[null,"Fronius","Fronius Primo 4.0-1",4,"Fronius"]
[null,"Fronius","Fronius Primo 5.0-1",5,"Fronius"]
[null,"Fronius","Fronius Primo 6.0-1",6,"Fronius"]
[null,"Fronius","Fronius Primo 8.2-1",8.1999999999999993,"Fronius"]
[null,"FRONIUS","Galvo 1.5-1",1.5,"FRONIUS"]
[null,"FRONIUS","Galvo 2.0-1",2,"FRONIUS"]
[null,"FRONIUS","Galvo 2.5-1",2.5,"FRONIUS"]
[null,"FRONIUS","Galvo 3.0-1",3,"FRONIUS"]
[null,"FRONIUS","Galvo 3.1-1",3.1,"FRONIUS"]
[null,"FRONIUS","IG Plus 100-150V-3",100,"FRONIUS"]
[null,"FRONIUS","IG Plus 120-150V-3",120,"FRONIUS"]
[null,"FRONIUS","IG Plus 25-100V-1",25,"FRONIUS"]
[null,"FRONIUS","IG Plus 30-100V-1",30,"FRONIUS"]
[null,"FRONIUS","IG Plus 35-100V-1",35,"FRONIUS"]
[null,"FRONIUS","IG Plus 50-100V-1",50,"FRONIUS"]
[null,"FRONIUS","IG Plus 55-100V-1",55,"FRONIUS"]
[null,"FRONIUS","IG Plus 55-100V-2",50,"FRONIUS"]
[null,"FRONIUS","IG Plus 55-150V-3",50,"FRONIUS"]
[null,"FRONIUS","IG Plus 60-100V-1",60,"FRONIUS"]
[null,"FRONIUS","IG Plus 60-100V-2",60,"FRONIUS"]
[null,"FRONIUS","IG Plus 60-150V-3",60,"FRONIUS"]
[null,"FRONIUS","IG Plus 70-100V-1",70,"FRONIUS"]
[null,"FRONIUS","IG Plus 70-100V-2",70,"FRONIUS"]
[null,"FRONIUS","IG Plus 80-150V-3",80,"FRONIUS"]
[null,"FRONIUS","Primo 3.0-1",3,"FRONIUS"]
[null,"FRONIUS","Primo 3.5-1",3.5,"FRONIUS"]
[null,"FRONIUS","Primo 3.6-1",3.6,"FRONIUS"]
[null,"FRONIUS","Primo 4.0-1",4,"FRONIUS"]
[null,"FRONIUS","Primo 4.6-1",4.5999999999999996,"FRONIUS"]
[null,"FRONIUS","Primo 5.0-1",5,"FRONIUS"]
[null,"FRONIUS","Primo 6.0-1",6,"FRONIUS"]
[null,"FRONIUS","Primo 8.2-1",8.1999999999999993,"FRONIUS"]
[null,"FRONIUS","Symo 10.0-3 208 240",10,"FRONIUS"]
[null,"FRONIUS","Symo 10.0-3-M",10,"FRONIUS"]
[null,"FRONIUS","Symo 12.0-3-M",12,"FRONIUS"]
[null,"FRONIUS","ECO 24.0-3-S",25,"FRONIUS"]
[null,"Fronius ","ECO 25-0-3-S ",25,"Fronius "]
[null,"Fronius ","ECO 27-0-3-S ",27,"Fronius "]
[null,"Fronius ","SYMO 12.0-3 208-240 ",12,"Fronius "]
[null,"Fronius ","SYMO 12.5-3-M",12.5,"Fronius "]
[null,"Fronius ","SYMO 15.0-3-M",15,"Fronius "]
[null,"Fronius ","SYMO 17.5-3-M",17.5,"Fronius "]
[null,"Fronius ","SYMO 20.0-3-M",20,"Fronius "]
[null,"Fronius ","SYMO BRASIL 15.0-3 208/240",15,"Fronius "]
[null,"GINLONG","SOLIS-30K-LV",30,"GINLONG"]
[null,"GINLONG","SOLIS-50k-4G",50,"GINLONG"]
[null,"GINLONG","Solis-60k-4G ",60,"GINLONG"]
[null,"Ginlong","Solis-3P15K-4G",15,"Ginlong"]
[null,"Ginlong","Solis-3P17K-4G",17,"Ginlong"]
[null,"Ginlong","Solis-15K-LV (=RENO-15K-LV)",15,"Ginlong"]
[null,"Ginlong","Solis-20K-LV (=RENO-20K-LV)",20,"Ginlong"]
[null,"Ginlong","Solis-30K (=RENO-30K-LV)",30,"Ginlong"]
[null,"Ginlong","Solis-36K-HV",36,"Ginlong"]
[null,"Ginlong","Solis-40K-HV",40,"Ginlong"]
[null,"Ginlong","Solis-50K",50,"Ginlong"]
[null,"Ginlong","Solis-50K-HV",50,"Ginlong"]
[null,"Ginlong","Solis-50K-5G",50,"Ginlong"]
[null,"Ginlong","Solis-60K",60,"Ginlong"]
[null,"Ginlong","Solis-60K-4G",60,{"$f":"B261","v":"Ginlong"}]
[null,"Ginlong","Solis-60K-5G",60,"Ginlong"]
[null,"Ginlong","Solis-70K-5G",70,"Ginlong"]
[null,"Ginlong","Solis-75K-5G",75,"Ginlong"]
[null,"Ginlong","Solis-80K-5G",80,"Ginlong"]
[null,"Ginlong","URE-50K",50,"Ginlong"]
[null,"Ginlong","URE-50K-HV",50,"Ginlong"]
[null,"Ginlong","URE-60K-HV",60,"Ginlong"]
[null,"Ginlong ","GCI-3K-2W ",3.3,"Ginlong "]
[null,"Ginlong ","GCI-3K-W ",3,"Ginlong "]
[null,"Ginlong ","GCI-5K-2W ",5,"Ginlong "]
[null,"GOODWE","GW12KLV-MT",12,"GOODWE"]
[null,"GOODWE","GW12KN-DT",12,"GOODWE"]
[null,"GOODWE","GW15KLV-DT",15,"GOODWE"]
[null,"GOODWE","GW15KLV-MT",15,"GOODWE"]
[null,"GOODWE","GW3000-NS",3,"GOODWE"]
[null,"GOODWE","GW30KLV-MT",30,"GOODWE"]
[null,"GOODWE","GW35KLV-MT",35,"GOODWE"]
[null,"GOODWE","GW50KLV-MT",50,"GOODWE"]
[null,"GOODWE","GW60KLV-MT",60,"GOODWE"]
[null,"GOODWE","GW500D-NS",5,"GOODWE"]
[null,"GOODWE","GW3000-XS",3,"GOODWE"]
[null,"GOODWE","GW3000D-NS",3,"GOODWE"]
[null,"GOODWE","GW3600D-NS",3.6,"GOODWE"]
[null,"GOODWE","GW4200D-NS",4.2,"GOODWE"]
[null,"GOODWE","GW5000D-NS",5,"GOODWE"]
[null,"GOODWE","GW6000D-NS",6,"GOODWE"]
[null,"GOODWE","GW8500-MS",8.5,"GOODWE"]
[null,"GOODWE","GW10K-DT",10,"GOODWE"]
[null,"GOODWE","GW12K-DT",12,"GOODWE"]
[null,"GOODWE","GW15K-DT",15,"GOODWE"]
[null,"GOODWE","GW17K-DT",17,"GOODWE"]
[null,"GOODWE","GW20K-DT",20,"GOODWE"]
[null,"GOODWE","GW25K-DT",25,"GOODWE"]
[null,"GOODWE","GW25K-MT",25,"GOODWE"]
[null,"GOODWE","GW30K-MT",30,"GOODWE"]
[null,"GOODWE","GW36K-MT",36,"GOODWE"]
[null,"GOODWE","GW50KN-MT",50,"GOODWE"]
[null,"GOODWE","GW50KBF-MT",50,"GOODWE"]
[null,"GOODWE","GW60K-MT",60,"GOODWE"]
[null,"GOODWE","GW60KN-MT",60,"GOODWE"]
[null,"GOODWE","GW60KBF-MT",60,"GOODWE"]
[null,"GOODWE","GW70KHV-MT",70,"GOODWE"]
[null,"GOODWE","GW75KBF-MT",75,"GOODWE"]
[null,"GOODWE","GW80KBF-MT",0,"GOODWE"]
[null,"GOODWE","GW80KHV-MT",80,"GOODWE"]
[null,"Gree Eletric ","GMV-Y224WM/A-X ",12.5,"Gree Eletric "]
[null,"Gree Eletric ","GMV-Y224WM/B-X ",12.5,"Gree Eletric "]
[null,"Gree Eletric ","GMV-Y280WM/A-X ",12.5,"Gree Eletric "]
[null,"Gree Eletric ","GMV-Y280WM/B-X ",12.5,"Gree Eletric "]
[null,"Gree Eletric ","GMV-Y335WM/A-X ",12.5,"Gree Eletric "]
[null,"Gree Eletric ","GMV-Y335WM/B-X ",12.5,"Gree Eletric "]
[null,"GROWATT","Growatt 1000TL",1,"GROWATT"]
[null,"Growatt","Growatt 11000 TL3-S",11,"Growatt"]
[null,"Growatt","Growatt 12000TL",12,"Growatt"]
[null,"Growatt","Growatt 12000TL3-S",12,"Growatt"]
[null,"Growatt","Growatt 13000T3-S",13,"Growatt"]
[null,"Growatt","Growatt 15000T3-S",15,"Growatt"]
[null,"Growatt","Growatt 15000T3-SL",15,"Growatt"]
[null,"Growatt","Growatt 15000TL3-S",15,"Growatt"]
[null,"GROWATT","Growatt 1500TL",1.5,"GROWATT"]
[null,"Growatt","Growatt 17000TL3-S",17,"Growatt"]
[null,"Growatt","Growatt 17000TL3-SE",17,"Growatt"]
[null,"Growatt","Growatt 20000TL3-S",20,"Growatt"]
[null,"Growatt","Growatt 20000TL3-SE",20,{"$f":"B325","v":"Growatt"}]
[null,"Growatt","Growatt 20000UE",20,"Growatt"]
[null,"GROWATT","Growatt 2000S",2,"GROWATT"]
[null,"GROWATT","Growatt 2000TL",2,"GROWATT"]
[null,"Growatt","Growatt 22000TL3-SL",22,"Growatt"]
[null,"Growatt","Growatt 25000TL3-S",25,"Growatt"]
[null,"Growatt","Growatt 25000TL3-SE",25,"Growatt"]
[null,"Growatt","Growatt 25000TL3-SL",25,"Growatt"]
[null,"Growatt","Growatt 30000TL3-S",30,"Growatt"]
[null,"Growatt","Growatt 30000TL3-SE",30,"Growatt"]
[null,"GROWATT","Growatt 3000S",3,"GROWATT"]
[null,"Growatt","Growatt 33000TL3-S",33,"Growatt"]
[null,"Growatt","Growatt 33000TL3-SE",33,"Growatt"]
[null,"Growatt","Growatt 40000TL3-NS",40,"Growatt"]
[null,"Growatt","Growatt 40000TL3-NSE",40,"Growatt"]
[null,"Growatt","Growatt 50000TL3-S",50,"Growatt"]
[null,"Growatt","Growatt 50000TL3-SE",50,"Growatt"]
[null,"Growatt","Growatt-1500 S",1.6,"Growatt"]
[null,"Growatt","Growatt-2000 S",2,"Growatt"]
[null,"Growatt","Growatt-3000 S",3,"Growatt"]
[null,"Growatt","Growatt-3600MTL-S",3.6,"Growatt"]
[null,"Growatt","Growatt-4200MTL-S",4.2,"Growatt"]
[null,"Growatt","Growatt-5500MTL-S",5,"Growatt"]
[null,"Growatt","Growatt-8000MTL-S",8,"Growatt"]
[null,"Growatt","Max 50KTL3 LV",50,"Growatt"]
[null,"Growatt","Max 60KTL3 LV",60,"Growatt"]
[null,"Growatt","Max 70KTL3 LV",70,"Growatt"]
[null,"Growatt","Max 75KTL3 LV",75,"Growatt"]
[null,"Growatt","Max 80KTL3 LV",80,"Growatt"]
[null,"GROWATT","MIN3000TL-X",3,"GROWATT"]
[null,"GROWATT","MIN5000TL-X",5,"GROWATT"]
[null,"Growatt","MIN2500TL-X",2.5,"Growatt"]
[null,"Growatt","MIN 3000TL-X",3,"Growatt"]
[null,"Growatt","MIN 3600TL-X",3.6,"Growatt"]
[null,"Growatt","MIN4200TL-X",4.2,"Growatt"]
[null,"Growatt","MIN4600TL-X",4.5999999999999996,"Growatt"]
[null,"Growatt","MIN6000TL-X",6,"Growatt"]
[null,"Growatt","MID15KTL3-X",15,"Growatt"]
[null,"Growatt","MID 10KTL3-X",10,"Growatt"]
[null,"Growatt","MID 12KTL3-X",12,"Growatt"]
[null,"Growatt","MID 17KTL3-X",17,"Growatt"]
[null,"Growatt","MID 20KTL3-X",20,"Growatt"]
[null,"Growatt","MID 22KTL3-X",22,"Growatt"]
[null,"Growatt","MID 25KTL3-X",25,"Growatt"]
[null,"Growatt","8000MTL-S",8,"Growatt"]
[null,"GROWATT","12000TL3",12,"GROWATT"]
[null,"GROWATT","12000TL3-S",12,"GROWATT"]
[null,"GROWATT","13000TL3-S",13,"GROWATT"]
[null,"GROWATT","15000TL3-S",15,"GROWATT"]
[null,"GROWATT","17000TL3-S",17,"GROWATT"]
[null,"GROWATT","17000TL3-SE",17,"GROWATT"]
[null,"GROWATT","20000 EU",20,"GROWATT"]
[null,"GROWATT","20000TL3-S",20,"GROWATT"]
[null,"GROWATT","20000TL3-SE",20,"GROWATT"]
[null,"GROWATT","25000TL3-S",25,"GROWATT"]
[null,"GROWATT","25000TL3-SE",25,"GROWATT"]
[null,"GROWATT","30000TL3-S",30,"GROWATT"]
[null,"GROWATT","33000TL3-S",33,"GROWATT"]
[null,"GROWATT","40000TL3-S",40,"GROWATT"]
[null,"GROWATT","60000TL3-L",60,"GROWATT"]
[null,"GROWATT","MAC 40KTL3-X LV",40,"GROWATT"]
[null,"GROWATT","MAC 50KTL3-X LV",50,"GROWATT"]
[null,"GROWATT","MAC 60KTL3-X LV",60,"GROWATT"]
[null,"GROWATT","MAC 50KTL3-X MV",50,"GROWATT"]
[null,"GROWATT","MAC 60KTL3-X MV",60,{"$f":"B389","v":"GROWATT"}]
[null,"GROWATT","MAC 66KTL3-X MV",66,"GROWATT"]
[null,"GROWATT","MAC 70KTL3-X MV",70,"GROWATT"]
[null,"GROWATT","MAX 60KTL3 MV",60,"GROWATT"]
[null,"GROWATT","MAX 70KTL3 MV",70,"GROWATT"]
[null,"GROWATT","MAX 80KTL3 MV",80,"GROWATT"]
[null,"GROWATT","MID12KTL3-X",12,"GROWATT"]
[null,"GROWATT","MID17KTL3-X",17,"GROWATT"]
[null,"GROWATT","MID20KTL3-X",20,"GROWATT"]
[null,"GROWATT","MID22KTL3-X",22,"GROWATT"]
[null,"GROWATT","MID25KTL3-X",25,"GROWATT"]
[null,"GROWATT","8000TL3-S",8,"GROWATT"]
[null,"GROWATT","9000TL3-S",9,"GROWATT"]
[null,"GROWATT","10000TL3-S",10,"GROWATT"]
[null,"GROWATT","11000TL3-S",11,"GROWATT"]
[null,"Guangdong ","EA30KTLSI ",30,"Guangdong "]
[null,"Guangdong ","EA40KTLSI ",40,"Guangdong "]
[null,"Guangzhou Sanjing\n(SAJ)","SunTrio Plus 12K",12,"Guangzhou Sanjing\n(SAJ)"]
[null,"Guangzhou Sanjing\n(SAJ)","SunTrio Plus 15K",15,"Guangzhou Sanjing\n(SAJ)"]
[null,"Guangzhou Sanjing\n(SAJ)","SunTrio Plus 17K",17,"Guangzhou Sanjing\n(SAJ)"]
[null,"Guangzhou Sanjing\n(SAJ)","SunTrio Plus 20K",20,"Guangzhou Sanjing\n(SAJ)"]
[null,"Guangzhou Sanjing\n(SAJ)","SunTrio Plus 25K",25,"Guangzhou Sanjing\n(SAJ)"]
[null,"Guangzhou Sanjing\n(SAJ)","SunTrio Plus 33K",33,"Guangzhou Sanjing\n(SAJ)"]
[null,"Guangzhou Sanjing\n(SAJ)","SunTrio Plus 40K",40,"Guangzhou Sanjing\n(SAJ)"]
[null,"Guangzhou Sanjing\n(SAJ)","SunTrio Plus 50K",50,"Guangzhou Sanjing\n(SAJ)"]
[null,"Guangzhou Sanjing\n(SAJ)","SunTrio Plus 60K",60,"Guangzhou Sanjing\n(SAJ)"]
[null,"HOYMILES","MI-1200",1.2,"HOYMILES"]
[null,"HOYMILES","MI-250",0.25,"HOYMILES"]
[null,"HOYMILES","MI-250-MI-1200",0.25,"HOYMILES"]
[null,"HOYMILES","MI-500",0.5,"HOYMILES"]
[null,"HOYMILES","MI-500-MI-1200",0.5,"HOYMILES"]
[null,"HOYMILES","MI-1500",1.5,"HOYMILES"]
[null,"HOYMILLES","MI-700",0.7,"HOYMILLES"]
[null,"HUAWEI","SUN2000 - 12KTL",12,"HUAWEI"]
[null,"HUAWEI","SUN2000 - 33KTL-A",33,"HUAWEI"]
[null,"HUAWEI","SUN2000 - 60KTL-MO",60,"HUAWEI"]
[null,"HUAWEI","SUN2000 - 65KTL-MO",65,"HUAWEI"]
[null,"HUAWEI","SUN2000L - 2KTL",2,"HUAWEI"]
[null,"HUAWEI","SUN2000L - 3KTL",3,"HUAWEI"]
[null,"HUAWEI","SUN2000L - 4KTL",4,"HUAWEI"]
[null,"HUAWEI","SUN2000L - 5KTL",5,"HUAWEI"]
[null,"HUAWEI","SUN2000L - 8KTL",8,"HUAWEI"]
[null,"Huawei","SUN 2000 – 12KTL-M0",12,"Huawei"]
[null,"Huawei","SUN 2000 – 15KTL-M0",15,"Huawei"]
[null,"Huawei","SUN 2000 – 17KTL-M0",17,"Huawei"]
[null,"Huawei","SUN 2000 – 20KTL-M0",20,"Huawei"]
[null,"Huawei","SUN 2000 – 33KTL – A",33,"Huawei"]
[null,"Huawei","SUN 2000 – 12KTL-M2",12,"Huawei"]
[null,"Huawei","SUN 2000 – 15KTL-M2",15,"Huawei"]
[null,"Huawei","SUN 2000 – 17KTL-M2",17,"Huawei"]
[null,"Huawei","SUN 2000 – 20KTL-M2",20,"Huawei"]
[null,"Huawei","SUN 2000 – 36KTL",36,"Huawei"]
[null,"Huawei","SUN 2000 – 50KTL",50,"Huawei"]
[null,"Huawei","SUN 2000 – 60KTL",60,"Huawei"]
[null,"Huawei","SUN 2000–60KTL-MO",60,"Huawei"]
[null,"Huawei","SUN 2000–65KTL-MO",65,"Huawei"]
[null,"Huawei","SUN 2000–100KTL-H1",100,"Huawei"]
[null,"Huawei","SUN 2000–105KTL-H1",105,"Huawei"]
[null,"Huawei ","SUN2000-17KTL ",17,"Huawei "]
[null,"Huawei ","SUN2000-20KTL ",20,"Huawei "]
[null,"Huawei ","SUN2000-33KTL-A ",33,"Huawei "]
[null,"Huawei ","SUN2000-36KTL ",36,"Huawei "]
[null,"Huawei ","SUN2000-40KTL-JP ",40,"Huawei "]
[null,"Huawei ","SUN2000-42KTL ",42,"Huawei "]
[null,"Huawei ","SUN2000-50KTL ",50,{"$f":"B453","v":"Huawei "}]
[null,"Huawei ","SUN2000-60KTL-HV-D1-001 ",60,"Huawei "]
[null,"Huawei ","SUN2000-60KTL-M0",8,"Huawei "]
[null,"Hummer Dynamo ","HG-50k ",50,"Hummer Dynamo "]
[null,"INGETEAM","Ingecon Sun 2.5TL M",2.5,"INGETEAM"]
[null,"INGETEAM","Ingecon Sun 2.7TL M",2.7,"INGETEAM"]
[null,"INGETEAM","Ingecon Sun 3.3TL M",3.3,"INGETEAM"]
[null,"INGETEAM","Ingecon Sun 3.68TL M",3.68,"INGETEAM"]
[null,"INGETEAM","Ingecon Sun 3TL M",3,"INGETEAM"]
[null,"INGETEAM","Ingecon Sun 4.6TL M",4.5999999999999996,"INGETEAM"]
[null,"INGETEAM","Ingecon Sun 5.5TL M",5.5,"INGETEAM"]
[null,"INGETEAM","Ingecon Sun 5TL M",5,"INGETEAM"]
[null,"INGETEAM","Ingecon Sun 6TL M",6,"INGETEAM"]
[null,"Ingeteam","IngeconSun 3 TL M",3,"Ingeteam"]
[null,"Ingeteam","IngeconSun 5 TL M",5,"Ingeteam"]
[null,"INGETEAM","INGETEAM 55TL - 220-220V",55,"INGETEAM"]
[null,"Ingeteam","880TL M345 DCA Indoor",3.45,"Ingeteam"]
[null,"Ingeteam","Ingecon uWIND 2.5TL (Eólico)",2.5,"Ingeteam"]
[null,"Ingeteam","Ingecon uWIND 3TL (Eólico)",3,"Ingeteam"]
[null,"Ingeteam","Ingecon uWIND 3.3TL (Eólico)",3.3,"Ingeteam"]
[null,"Ingeteam","Ingecon uWIND 3.68TL (Eólico)",3.68,"Ingeteam"]
[null,"Ingeteam","Ingecon uWIND 3.8TL (Eólico)",3.8,"Ingeteam"]
[null,"Ingeteam","Ingecon uWIND 4.6TL (Eólico)",4.5999999999999996,"Ingeteam"]
[null,"Ingeteam","Ingecon uWIND 5TL (Eólico)",5,"Ingeteam"]
[null,"Ingeteam","Ingecon uWIND 6TL (Eólico)",6,"Ingeteam"]
[null,"Ingeteam","INGECON SUN 12,5TL",12.5,"Ingeteam"]
[null,"Ingeteam","INGECON SUN 15TL",15,"Ingeteam"]
[null,"Ingeteam","INGECON SUN 28TL",28,"Ingeteam"]
[null,"Ingeteam","INGECON SUN 33TL",33,"Ingeteam"]
[null,"Ingeteam","INGECON SUN 12,5TL M",12.5,"Ingeteam"]
[null,"Ingeteam","INGECON SUN 24TL M480",24,"Ingeteam"]
[null,"Ingeteam","INGECON SUN 28TL M",28,"Ingeteam"]
[null,"Ingeteam","INGECON SUN 33TL M",33,"Ingeteam"]
[null,"Ingeteam","INGECON SUN 40TL M480",40,"Ingeteam"]
[null,"Ingeteam","INGECON SUN 100TL",100,"Ingeteam"]
[null,"Ingeteam","INGECON SUN POWER 1000TL B360",1,"Ingeteam"]
[null,"Ingeteam","INGECON SUN POWER 1170TL B450",1.17,"Ingeteam"]
[null,"Ingeteam","INGECON SUN POWER 1640TL B630",1.64,"Ingeteam"]
[null,"Ingeteam","INGECON SUN POWER 1690TL B650",1.69,"Ingeteam"]
[null,"INGETEAM POWER ","INGECON SUN 100TLM ",100,"INGETEAM POWER "]
[null,"INGETEAM POWER ","Ingecon Sun 10TL",10,"INGETEAM POWER "]
[null,"INGETEAM POWER ","Ingecon Sun 10TL M",10,"INGETEAM POWER "]
[null,"INGETEAM POWER ","Ingecon Sun 15TL M",15,"INGETEAM POWER "]
[null,"INGETEAM POWER ","Ingecon Sun 20TL",20,"INGETEAM POWER "]
[null,"INGETEAM POWER ","Ingecon Sun 20TL M",20,"INGETEAM POWER "]
[null,"INGETEAM POWER ","INGECON SUN 28TL M ",28,"INGETEAM POWER "]
[null,"INGETEAM POWER ","INGECON SUN 33TL M ",33,"INGETEAM POWER "]
[null,"INGETEAM POWER ","Ingecon Uwind 2.5TL",2.5,"INGETEAM POWER "]
[null,"INGETEAM POWER ","Ingecon uWIND 3.3TL",3.3,"INGETEAM POWER "]
[null,"INGETEAM POWER ","Ingecon uWIND 3.68TL",3.68,"INGETEAM POWER "]
[null,"INGETEAM POWER ","Ingecon uWIND 3.8TL",3.8,"INGETEAM POWER "]
[null,"INGETEAM POWER ","Ingecon uWIND 3TL",3,"INGETEAM POWER "]
[null,"INGETEAM POWER ","Ingecon uWIND 4.6TL",4.5999999999999996,"INGETEAM POWER "]
[null,"INGETEAM POWER ","Ingecon uWIND 5TL",5,"INGETEAM POWER "]
[null,"INGETEAM POWER ","Ingecon uWIND 6TL",6,"INGETEAM POWER "]
[null,"INTELBRAS","EGT 15000 MAX",15,"INTELBRAS"]
[null,"INTELBRAS","EGT 20000 MAX",20,"INTELBRAS"]
[null,"INTELBRAS","EGT 22000 MAX",22,"INTELBRAS"]
[null,"INTELBRAS","EGT 30000 MAX",30,"INTELBRAS"]
[null,"INTELBRAS","EGT 3212X",12,"INTELBRAS"]
[null,"INTELBRAS","EGT 3215X",15,"INTELBRAS"]
[null,"INTELBRAS","EGT 33000 MAX",33,"INTELBRAS"]
[null,"INTELBRAS","EGT 40000 MAX",40,"INTELBRAS"]
[null,"INTELBRAS","EGT 50000 MAX",50,"INTELBRAS"]
[null,"INTELBRAS","EGT 6000 MAX",60,"INTELBRAS"]
[null,"INTELBRAS","EGT 70000 MAX",70,"INTELBRAS"]
[null,"INTELBRAS","EGT 75000 MAX",75,"INTELBRAS"]
[null,"INTELBRAS","EGT 80000 MAX",80]
[null,"INTELBRAS","EGT12033X",3.3]
[null,"INTELBRAS","EGT12046X",4.5999999999999996]
[null,"INTELBRAS","EGT3600PRO",3.6]
[null,"INTELBRAS","EGT 10500 PRO",10.5]
[null,"INTELBRAS","EGT 4600 PRO",4.5999999999999996]
[null,"INTELBRAS","EGT 8000 PRO",8]
[null,"INTELBRAS","EGT 3600 PRO",3.6]
[null,"INTELBRAS","EGT 10500 PRO ",10.5]
[null,"INTELBRAS","EGT 13000 MAX",13]
[null,"INTELBRAS","EGT 15000 MAX 220V",15]
[null,"INTELBRAS","EGT 22000 MAX 220V",22]
[null,"INTELBRAS","EGT 20000 MAX 220V",20]
[null,"INTELBRAS","EGT 60000 MAX",60]
[null,"INTISOL","SMP-600",0.6]
[null,"INVT","IMARS BG25KTR",25]
[null,"INVT","IMARS BG40KTR",40]
[null,"INVT","IMARS BG50KTR",50]
[null,"INVT","IMARS BG60KTR",60]
[null,"INVT","IMARS BG70KTR",70]
[null,"JIANGSU GOODWE","GW50K-MT",50]
[null,"KACO New Energy ","Powador 60.0 TL3 ",49.9]
[null,"KLNE","Sunteams 1500",1.5]
[null,"KLNE","Sunteams 2000",2]
[null,"KLNE","Sunteams 2800",2.8]
[null,"KLNE","Sunteams 3000",3]
[null,"KOMECO","INVERSOR KOFV IN 12KW – AR",12]
[null,"KOMECO","INVERSOR KOFV IN 20KW – AR",20]
[null,"KOMECO","INVERSOR KOFV IN 30KW – AR",30]
[null,"KOMECO","INVERSOR KOFV IN 50KW – AR",50]
[null,"KOMECO","INVERSOR KOFV IN 60KW – AR",60]
[null,"KSTAR","KSG-15K",15]
[null,"KSTAR","KSG-32K",32]
[null,"KSTAR","KSG-36K-HV",36]
[null,"KSTAR","KSG-60K-HV",60]
[null,"Kstar ","GSL0500 ",500]
[null,"Kstar ","KSG-12K ",12]
[null,"Kstar ","KSG-15K ",15]
[null,"Kstar ","KSG-20K ",20]
[null,"Kstar ","KSG-30K ",30]
[null,"Kstar ","KSG-32K ",32]
[null,"Kstar ","KSG-50K",50]
[null,"Kstar ","KSG-60K ",60]
[null,"Kstar ","KSL0500 ",500]
[null,"KSTAR - Komeco ","KSG-12K\nKOFV IN 12KW – AR",12]
[null,"KSTAR - Komeco ","KSG-20K\nINVERSOR KOFV IN 20KW - AR",20]
[null,"KSTAR - Komeco ","KSG-30K\nINVERSOR KOFV IN 30KW - AR",30]
[null,"KSTAR - Komeco ","KSG-50K\nINVERSOR KOFV IN 50KW - AR",50]
[null,"KSTAR - Komeco ","KSG-60K\nINVERSOR KOFV IN 60KW - AR",60]
[null,"MAYLAR","MAYSUN 1200W",1.2]
[null,"MBTech (ecoSolis) ","ES GT-10K",10]
[null,"MBTech (ecoSolis) ","ES GT-10K-220",10]
[null,"MBTech (ecoSolis) ","ES GT-12K-220",12]
[null,"MBTech (ecoSolis) ","ES GT-16K-220",16]
[null,"MBTech (ecoSolis) ","ES GT-30K",30]
[null,"MBTech (ecoSolis) ","ES GT-60K",60]
[null,"NEP","BDM-300X2-EU-D",0.5]
[null,"NHS","NHS SOLAR 1K5-GSM1",1]
[null,"NHS","NHS SOLAR 3K-GSM1",3]
[null,"NHS","NHS SOLAR 5K-GDM1",5]
[null,"NHS","NHS SOLAR-1K5-GSM1",1]
[null,"NHS","NHS SOLAR-3K-GSM1",3]
[null,"NHS","NHS SOLAR-5K-GDM1",5]
[null,"NHS","NHS SOLAR-3K-GSM2",3]
[null,"NHS ","NHS SOLAR – 15K - GDM1 ",15]
[null,"NHS ","NHS SOLAR – 25K - GDM1 ",25]
[null,"Ningbo Ginlong ","Solis-15k-LV",15]
[null,"Ningbo Ginlong ","Solis-20k",20]
[null,"Ningbo Ginlong ","Solis-20k-LV",20]
[null,"Ningbo Ginlong ","Solis-25K",25]
[null,"Ningbo Ginlong ","Solis-25k-LV",25]
[null,"Ningbo Ginlong ","Solis-30k",30]
[null,"Ningbo Ginlong ","Solis-50K ",50]
[null,"Ningbo Sunways","STT-12KTL",12]
[null,"Ningbo Sunways","STT-15KTL",15]
[null,"Ningbo Sunways","STT-17KTL",17]
[null,"Ningbo Sunways","STT-20KTL",20]
[null,"Ningbo Sunways","STT-25KTL",25]
[null,"OMINKSOL","Omniksol-3k-TL2",3]
[null,"OMINKSOL","Omniksol-4k-TL2",4]
[null,"OMINKSOL","Omniksol-5k-TL2",5]
[null,"Omnik","Omniksol-13k-tl3 ",13]
[null,"Omnik New Energy","Omniksol-13k-TL3",13]
[null,"Omnik New Energy","Omniksol-50K-TL3-H",50]
[null,"OMNIX","OMNIX 5K-TL2",5]
[null,"OUTBACK POWER","FXR3048A",3]
[null,"OUTBACK POWER","GVFX3648",3.6]
[null,"PEIMAR","PSI-10000TL",10]
[null,"PEIMAR","PSI-15000TL",15]
[null,"PEIMAR","PSI-17000TL",17]
[null,"PEIMAR","PSI-20000TL",20]
[null,"PEIMAR","PSI-30000TL",30]
[null,"PEIMAR","PSI-33000TL",33]
[null,"PHB","PHB 4600-SS",4.5999999999999996]
[null,"PHB","PHB14K-DT",14]
[null,"PHB","PHB1500-NS",1.5]
[null,"PHB","PHB1500-SS",1.5]
[null,"PHB","PHB25K-DT",25]
[null,"PHB","PHB3000-NS",3]
[null,"PHB","PHB3000-SS",3]
[null,"PHB","PHB35K-MT (220/127V)",35]
[null,"PHB","PHB4600-SS",4.5999999999999996]
[null,"PHB","PHB5000D-NS",5]
[null,"PHB","PHB60K-MT (380/220V)",60]
[null,"PHB Eletrônica ","PHB14K-DT ",14]
[null,"PHB Eletrônica ","PHB20K-DT ",20]
[null,"PHB Eletrônica ","PHB25K-DT ",25]
[null,"PHB Eletrônica ","PHB35K-MT ",35]
[null,"PHB Eletrônica ","PHB5000D-NS ",5]
[null,"PHB Eletrônica ","PHB60K-MT ",60]
[null,"PHB Solar","PHB20K-DT",20]
[null,"PHB Solar","PHB35K-MT",35]
[null,"Power-One","Aurora Trio-20.0TL-OUTD",20]
[null,"Power-One","Aurora Trio-27.6TL-OUTD",27.6]
[null,"Power-One ","Trio-20.0TL-OUTD ",20]
[null,"Power-One ","Trio-27.6TL-OUTD ",25]
[null,"REFU Elektronic ","REFUsol 23K ",23]
[null,"REFU Elektronik ","REFUsol 20K ",20]
[null,"REFU Elektronik ","REFUsol 40K ",40]
[null,"REFU Elektronik ","REFUsol 46K ",46]
[null,"REFU Elektronik GmbH","REFUsol 20K",20]
[null,"REFU Elektronik GmbH","REFUsol 20K-2T",20]
[null,"REFU Elektronik GmbH","REFUsol 25K-2T (850P025)",25]
[null,"REFU Elektronik GmbH","REFUsol 30K-2T",30]
[null,"REFU Elektronik GmbH","REFUsol 33K-2T (850P033)",33]
[null,"REFU Elektronik GmbH","REFUsol 40K",40]
[null,"REFU Elektronik GmbH","REFUsol 46K",46]
[null,"REFU Elektronik GmbH","REFUsol 50K-3T",50]
[null,"REFU Elektronik GmbH","REFUsol 60K-3T",60]
[null,"REFU Elektronik GmbH","REFUsol 70K-3T",70]
[null,"REFUSOL","REFUone 1,6K-1T",1.6]
[null,"REFUSOL","REFUone 3K-2T",3]
[null,"REFUSOL","REFUone 5K-2T",5]
[null,"REFUSOL","REFUone 7K-2T",7]
[null,"REFUSOL","REFUsol 801P003200",3]
[null,"REFUSOL","REFUsol 801P007200",7.5]
[null,"REFUSOL","REFUsol 840P040010",40]
[null,"REFUSOL","REFUsol 867P020.010",20]
[null,"RENOVIGI","RENO-10K",10]
[null,"RENOVIGI","RENO-20K-LV",20]
[null,"Renovigi","RENO-20K-LV (SOLIS)",20]
[null,"RENOVIGI","RENO3000",3]
[null,"Renovigi","RENO30K",30]
[null,"RENOVIGI","RENO-30K",30]
[null,"Renovigi","RENO30K-LV",30]
[null,"RENOVIGI","RENO-30K-LV",30]
[null,"RENOVIGI","RENO-3K PLUS",3]
[null,"RENOVIGI","RENO-4K PLUS",4]
[null,"RENOVIGI","RENO500",0.5]
[null,"Renovigi","RENO50K",50]
[null,"RENOVIGI","RENO-50K",50]
[null,"RENOVIGI","RENO560",0.56000000000000005]
[null,"RENOVIGI","RENO560-LV",0.56000000000000005]
[null,"RENOVIGI","RENO-5K PLUS",5]
[null,"Renovigi","RENO60K",60]
[null,"RENOVIGI","RENO-60K",60]
[null,"RENOVIGI","RENO-8K",8]
[null,"RENOVIGI","ST12000TL",12]
[null,"RENOVIGI","ST20000TL",20.010000000000002]
[null,"RENOVIGI","RENO-75-NG",75]
[null,"Renovigi","RENO 15K",15]
[null,"Renovigi","RENO 15K-LV",15]
[null,"Renovigi","RENO 20K",20]
[null,"Renovigi","RENO 20K-LV",20]
[null,"Renovigi","RENO 30K",30]
[null,"Renovigi","RENO 30-K-LV",30]
[null,"Renovigi","RENO 50K",50]
[null,"Renovigi","RENO 60K",60]
[null,"SAJ","SUNUNO PLUS 5K-M",5]
[null,"SAJ ","Suntrio Plus 3K ",3]
[null,"SAJ ","Suntrio Plus 5K ",5]
[null,"SAJ ","Suntrio Plus 12K ",12]
[null,"SAJ ","Suntrio Plus 15K ",15]
[null,"SAJ ","Suntrio Plus 17K ",17]
[null,"SAJ ","Suntrio Plus 20K ",20]
[null,"SAJ ","Suntrio Plus 25K ",25]
[null,"SAJ ","Suntrio Plus 33K ",33]
[null,"SAJ ","Suntrio Plus 40K ",40]
[null,"SAJ ","Suntrio Plus 50K ",50]
[null,"SAJ ","Suntrio Plus 60K ",60]
[null,"SAJ ","Suntrio-TL12K ",12]
[null,"SAJ ","Suntrio-TL15K ",15]
[null,"SAJ ","Suntrio-TL17K ",17]
[null,"SAJ ","Suntrio-TL20K ",20]
[null,"SAJ SOLAR INVERTER ","BLS 4K",4]
[null,"SAJ SOLAR INVERTER ","BLS 5K",5]
[null,"SAMIL POWER","SOLARLAKE 12000TL-PM",12]
[null,"SAMIL POWER","SOLARLAKE 15000TL-PM",15]
[null,"SAMIL POWER","SOLARLAKE 17000TL-PM",17]
[null,"SAMIL POWER","SOLARLAKE 20000TL-PM",20]
[null,"SAMIL POWER","SOLARLAKE 25000TL-PM",25]
[null,"SAMIL POWER","SOLARLAKE 30000TL-PM",30]
[null,"SANTERNO","M Plus 2600",2.6]
[null,"SANTERNO","M Plus 3600",3.6]
[null,"SANTERNO","M Plus 3600E",3.6]
[null,"SANTERNO","M Plus 4300",4.3]
[null,"SANTERNO","M Plus 4300E",4.3]
[null,"SANTERNO","M Plus 4600TL",4.5999999999999996]
[null,"SANTERNO","M Plus 5000TL",5]
[null,"SANTERNO","M Plus 5300",5.3]
[null,"SANTERNO","M Plus 6000TL",6]
[null,"SANTERNO","M Plus 6400",6.4]
[null,"SANTERNO","M Plus 7500TL",7.5]
[null,"SANTERNO","M Plus 7800",7.8]
[null,"SCHNEIDER","Conext RL 3000E",3]
[null,"SCHNEIDER","Conext RL 5000E",5]
[null,"Schneider Electric","Conext CL 20000E",20]
[null,"Schneider Electric","Conext CL 25000E",25]
[null,"Schneider Electric","Conext CL 60",60]
[null,"Schneider Electric ","Conext CL 20000E ",20]
[null,"Schneider Electric ","Conext CL 25000E ",25]
[null,"SERRANA","Blank 3000 26 Z",3]
[null,"SERRANA","BLANK 5000 26 Z",5]
[null,"Serrana","Cabernet 40000 32 L",40]
[null,"Serrana ","Cabernet 30000 27 L ",30]
[null,"Serrana ","Cabernet 33000 27 L ",33]
[null,"Serrana ","Cabernet 40000 32 L ",40]
[null,"Serrana (East)","EA40kTLSI",40]
[null,"Serrana (East)","EA50kTLSI",50]
[null,"Shenzhen ","SOFAR 12KTL-X",12]
[null,"Shenzhen ","SOFAR 15000TL",15]
[null,"Shenzhen ","SOFAR 20000TL",20]
[null,"Shenzhen ","SOFAR 20000TL-G2",20]
[null,"Shenzhen ","SOFAR 20000TL-SX",20]
[null,"Shenzhen ","SOFAR 25000 TL G2",25]
[null,"Shenzhen ","SOFAR 25000TL",25]
[null,"Shenzhen ","SOFAR 30000 TL G2",30]
[null,"Shenzhen ","SOFAR 30000TL ",30]
[null,"Shenzhen ","SOFAR 33000TL",33]
[null,"Shenzhen ","SOFAR 33000TL G2",33]
[null,"Shenzhen ","SOFAR 50000TL",50]
[null,"Shenzhen ","SOFAR 60000TL",60]
[null,"ShenZhen - INVT Solar","iMars BG10KTR",10]
[null,"ShenZhen - INVT Solar","iMars BG12KTR",12]
[null,"ShenZhen - INVT Solar","iMars BG15KTR",15]
[null,"ShenZhen - INVT Solar","iMars BG17KTR",17]
[null,"ShenZhen - INVT Solar","iMars BG20KTR",20]
[null,"ShenZhen - INVT Solar","iMars BG30KTR",30]
[null,"ShenZhen - INVT Solar","iMars BG33KTR",33]
[null,"SHENZHEN KSTAR","KSG-1.5K-SM",1.5]
[null,"SHENZHEN KSTAR","KSG-3K-SM",3]
[null,"SHENZHEN KSTAR","KSG-5K-DM",5]
[null,"SHENZHEN KSTAR","KSG-6K",6]
[null,"SMA","SB 1.5-1VL-40",1.5]
[null,"SMA","SB 2.5-1VL-40",2.5]
[null,"SMA","STP 10000 TL-20",10]
[null,"SMA","STP 12000 TL",12]
[null,"SMA","STP 20000TL-30",20]
[null,"SMA","STP 25000TL-30",25]
[null,"SMA","Sun 2000 – 50 KTL ",50]
[null,"SMA","Sunny Boy 1300TL",1.3]
[null,"SMA","Sunny Boy 1600TL",1.6]
[null,"SMA","Sunny Boy 2100TL",2.1]
[null,"SMA","Sunny Boy 3.0-1AV-40",3]
[null,"SMA","Sunny Boy 3.6-1AV-40",3.6]
[null,"SMA","Sunny Boy 4.0-1AV-40",4]
[null,"SMA","Sunny Boy 5.0-1AV-40",5]
[null,"SMA","Sunny Boy 5000",5]
[null,"SMA","Sunny Boy 5000TL-21",5]
[null,"SMA","Sunny Boy 6.0-1AV-40",6]
[null,"SMA","Sunny Highpower PEAK1",75]
[null,"SMA","Sunny SMC 4600A",4.5999999999999996]
[null,"SMA","Sunny SMC 5000A",5]
[null,"SMA","Sunny SMC 6000A",6]
[null,"SMA","Sunny SMC 7000HV",7]
[null,"SMA","SUNNY TRIPOWER 15000TL ",15]
[null,"SMA","SUNNY TRIPOWER 20000TL",20]
[null,"SMA","SUNNY TRIPOWER 25000TL",25]
[null,"SMA","SUNNY TRIPOWER 12000TL",12]
[null,"SMA","SUNNY TRIPOWER 50000",5]
[null,"SMA","SHP-50",50]
[null,"SMA","STP 15000TL-30",30]
[null,"SMA","STP 60-10",60]
[null,"SMA","SHP-75",75]
[null,"SMA","SHP100-20",100]
[null,"SMA","SHP150-20",150]
[null,"SMA eolica","SMA WINDY BOY WB 5000TL-21",5]
[null,"SMA Solar ","SHP 75-10",75]
[null,"SMA Solar ","STP 12000TL-20 ",12]
[null,"SMA Solar ","STP 15000TL-30 ",15]
[null,"SMA Solar ","STP 20000TL-30 ",20]
[null,"SMA Solar ","STP 25000TL-30 ",25]
[null,"SMA Solar ","STP 50-40 ",50]
[null,"SMA Solar ","STP 60-10 ",60]
[null,"SOFAR SOLAR","SOFAR 11KTL-X",11]
[null,"SOFAR SOLAR","SOFAR 25000TL-G2",25]
[null,"SOFAR SOLAR","SOFAR 30000TL-G2",30]
[null,"SOFAR SOLAR","SOFAR 3000TL",3]
[null,"SOFAR SOLAR","SOFAR 33000TL-G2",33]
[null,"SOFAR SOLAR","SOFAR 5KTLM-G2",5]
[null,"SOFAR SOLAR","SOFAR 70000TL-HV",70]
[null,"SOFAR SOLAR","4TKTM-G2",4]
[null,"SOFAR SOLAR","3TKTM-G2",4]
[null,"SOFAR SOLAR","3300TL-G3",3]
[null,"SOFAR SOLAR","SOFAR 11000TL-LV",11000]
[null,"SOFAR SOLAR","SOFAR 13500TL-LV",13.5]
[null,"SOFAR SOLAR","SOFAR 16500TL-LV",16.5]
[null,"SOFAR SOLAR","SOFAR 18000TL-LV",18]
[null,"SOFAR SOLAR","SOFAR 27500TL-LV",27.5]
[null,"SOFAR SOLAR","3KTM-G2",3]
[null,"SOFAR SOLAR","3.6KTLM-G2",3.6]
[null,"SOFAR SOLAR","4KTLM-G2",4]
[null,"SOFAR SOLAR","4.6KTLM-G2",4.5999999999999996]
[null,"SOFAR SOLAR","5KTLM-G2",5]
[null,"SOFAR SOLAR","6KTLM-G2",6]
[null,"SOFAR SOLAR","11KTL-X",11]
[null,"SOFAR SOLAR","12KTL-X",12]
[null,"SOFAR SOLAR","15000TL-SX",15]
[null,"SOFAR SOLAR","20000TL-G2",20]
[null,"SOFAR SOLAR","25000TL-G2",25]
[null,"SOFAR SOLAR","30000TL-G2",30]
[null,"SOFAR SOLAR","33000TL-G2",33]
[null,"SOFAR SOLAR","50000TL",50]
[null,"SOFAR SOLAR","60000TL",60]
[null,"SOFAR SOLAR","70000TL-HV",70]
[null,"SOFAR SOLAR ","SOFAR 3KTLM-G2",3]
[null,"Solar Energy","SE-TL2K ",2.2999999999999998]
[null,"Solar Energy","SE-TL3KA",3.2]
[null,"Solar Energy","SE-TL3KB",3]
[null,"Solar Energy","SE-TL4K ",4]
[null,"Solar Energy","SE-TL5K ",5]
[null,"SOLAR ENERGY DO BRASIL (SAJ)","SE (Sununo) TL 1.5K",1.5]
[null,"SOLAR ENERGY DO BRASIL (SAJ)","SE (Sununo) TL 2K",2]
[null,"SOLAR ENERGY DO BRASIL (SAJ)","SE (Sununo) TL 3KA",3]
[null,"SOLAR ENERGY DO BRASIL (SAJ)","SE (Sununo) TL 3KB",3.3]
[null,"SOLAR ENERGY DO BRASIL (SAJ)","SE (Sununo) TL 4KA",4]
[null,"SOLAR ENERGY DO BRASIL (SAJ)","SE (Sununo) TL 4KB",4.4000000000000004]
[null,"SOLAR ENERGY DO BRASIL (SAJ)","SE (Sununo) TL 5K",5]
[null,"Solar Power","SPE 12KW",12]
[null,"Solar Power","SPE 15KW",15]
[null,"Solar Power","SPE 20KW",20]
[null,"Solar Power","SPE 25KW",25]
[null,"SolarEdge","SE50K",50]
[null,"SolarEdge","SE55K",55]
[null,"SolarEdge","SE66.6K",66.599999999999994]
[null,"SolarEdge","SE82.8K",82.8]
[null,"SolarEdge","SE100K",100]
[null,"SolarEdge Technologies","SE17K",17]
[null,"SolarEdge Technologies","SE27.6K",26.4]
[null,"SolarEdge Technologies","SE75K",75]
[null,"SOLIS","Solis-1P5K - 4G",5]
[null,"Solis","Solis-3P12K-4G",12]
[null,"Solis","Solis-3P20K-4G",20]
[null,"Solis","Solis-40K",40]
[null,"SOLIS","Solis-mini-1500",1.5]
[null,"Solis","Solis-mini-3000-4G",3]
[null,"SOLIS","1P7K-4G",7]
[null,"SOLIS"," 1P4K-4G",4]
[null,"SOLIS","1P3K-4G",3]
[null,"SOLIS","1P8K-4G - 8KW",8]
[null,"Southwest Windpower","Skystream 3.7 (Eólico)",3.7]
[null,"Southwest Windpower ","Skystream 3.7 ",3.7]
[null,"SUNGROW","SG2K-S",2]
[null,"SUNGROW","SG36KTL-M",36]
[null,"SUNGROW","SG3K-S",3]
[null,"SUNGROW","SG4K-D",4]
[null,"SUNGROW","SG5K-D",5]
[null,"SUNGROW","SG60KTL",60]
[null,"SUNGROW","SG6K-D",6]
[null,"SUNGROW","SG8K3-D",8.3000000000000007]
[null,"SUNGROW","SG20KTL-M",20]
[null,"SUNGROW","SG33CX",33]
[null,"SUNGROW","SG40CX",40]
[null,"SUNGROW","SG110CX",110]
[null,"SUNGROW","SG125HV",125]
[null,"SUNGROW","SG250HX",250]
[null,"SUNGROW","SG33KTL-M",33]
[null,"SUNGROW","SG15KTL-M",15]
[null,"SUNGROW","SG17KTL-M",17]
[null,"SUNGROW","SG40KTL-M",40]
[null,"SUNGROW ","SG12KTL-M",12]
[null,"SUNGROW ","SG20KTL-M ",20]
[null,"SUNGROW ","SG36KTL-M ",36]
[null,"SUNGROW ","SG50CX",50]
[null,"SUNGROW ","SG50KTL",50]
[null,"Thinkpower","S3000TL",3]
[null,"WEG","SIW 300 M015",1.5]
[null,"WEG","SIW 300 M025",2.5]
[null,"WEG","SIW 300 M030",3]
[null,"WEG","SIW 300 M050",5]
[null,"WEG","SIW 300H-M030",3]
[null,"WEG","SIW 300H-M040 (SUN2000L-4KTL)",4]
[null,"WEG","SIW 300H-M050",5]
[null,"WEG","SIW 500H-ST010 ",10]
[null,"WEG","SIW 500H-ST013",13.2]
[null,"WEG","SIW 500H-ST020",20]
[null,"WEG","SIW 500H-ST022",22]
[null,"WEG","SIW 500H-ST030",30]
[null,"WEG","SIW 500H-ST040",40]
[null,"WEG","SIW 500H-ST060",60]
[null,"WEG","SIW300HM040 L1",4]
[null,"WEG","SMA 25000TL-30",25]
[null,"WEG","SIW600 T020-44",20]
[null,"WEG","SIW500H ST012 (SUN 2000 – 12KTL-M0)",12]
[null,"WEG","SIW500H ST013 (SUN 2000 – 12KTL)",12]
[null,"WEG","SIW500H ST015 (SUN 2000 – 15KTL-M0)",15]
[null,"WEG","SIW500H ST018 (SUN 2000 – 17KTL)",17]
[null,"WEG","SIW500H ST020 (SUN 2000 – 20KTL-M0)",20]
[null,"WEG","SIW500H ST022 (SUN 2000 – 20KTL)",20]
[null,"WEG","SIW500H ST030 (SUN 2000 – 33KTL-A)",33]
[null,"WEG","SIW500H ST036 (SUN 2000 – 36KTL)",36]
[null,"WEG","SIW500H ST040 (SUN 2000 – 36KTL)",36]
[null,"WEG","SIW500H ST050 (SUN 2000 – 50KTL)",50]
[null,"WEG","SIW500H ST060 (SUN 2000 – 60KTL)",60]
[null,"WEG ","SIW500H ST013",13.2]
[null,"WEG ","SIW500H ST018",18]
[null,"WEG ","SIW500H ST060",60]
[null,"WEG ","SIW500H-ST030",30]
[null,"WEG ","SIW600 T020-44 ",20]
[null,"WEG ","SMA 25000TL-30 ",25]
[null,"WEG ","SMA SB 5000TL- 21 ",4.5999999999999996]

{"sheet":"config","index":10,"n_rows":515,"n_cols":14,"rows_kept":515,"cut":false,"hidden":true,"merged":[[6,4,6,5],[12,4,12,5],[12,6,15,7],[16,4,16,5]]}
["Residencial","Solar","Monofásico",220,"Aéreo",null,"Horária Verde",null,null,"FABRICANTE","FABRICANTE","MODELO","POTÊNCIA"]
["Rural","Eólica","Bifásico","127 / 220","Subterrâneo",null,"Horária Azul",null,1,"ABB","NEP","BDM-300X2-EU-D",null,{"$f":"K2","v":"NEP"}]
["Comercial","Biomassa","Trifásico","220 / 380",null,null,"Optante B",null,2,"ABB ","SERRANA","Blank 3000 26 Z",null,"SERRANA"]
["Industrial","Cogeração qualificada","Média tensão",13800,null,null,null,null,3,"AFORE","SERRANA","BLANK 5000 26 Z",null,"SERRANA"]
["Poder Público",null,"Alta tensão",69000,null,null,null,null,4,"APSYSTEMS","SAJ SOLAR INVERTER ","BLS 4K",null,"SAJ SOLAR INVERTER "]
["A4",null,null,null,null,null,null,null,5,"B&B Power","SAJ SOLAR INVERTER ","BLS 5K",null,"SAJ SOLAR INVERTER "]
[null,null,null,null,"Validação dos inversores",null,null,null,6,"B&B Power ","AFORE","BNT027KTL","500 kW","AFORE"]
["Qtd cel preenchidas FSA","Qtd cel preenchidas MD",null,null,"Inversor 1",null,null,null,7,"CANADIAN SOLAR","Serrana ","Cabernet 30000 27 L",null,"Serrana "]
[{"$f":"COUNTA('FSA Micro <=10'!C6:F6,'FSA Micro <=10'!C7:J7,'FSA Micro <=10'!I6:J6,'FSA Micro <=10'!C8:F8,'FSA Micro <=10'!H8,'FSA Micro <=10'!J8,'FSA Micro <=10'!B9:D9,'FSA Micro <=10'!F9:J9,'FSA Micro <=10'!B10:E10,'FSA Micro <=10'!B11:C11,'FSA Micro <=10'!F11:I11,'FSA Micro <=10'!C12:E12,'FSA Micro <=10'!D14,'FSA Micro <=10'!I14:J14,'FSA Micro <=10'!C16:D16,'FSA Micro <=10'!D19,'FSA Micro <=10'!D35:J35,'FSA Micro <=10'!B36:C36,'FSA Micro <=10'!F36:J36)","v":19},{"$f":"COUNTA(MD!B39:J39,MD!C58:K58,MD!C75,MD!E75,MD!F75,MD!H75,MD!K75)","v":15},"Lista?",null,"Inversor 2",null,null,null,8,"Canadian Solar Inc","Serrana","Cabernet 40000 32 L",null,"Serrana"]
[{"$f":"COUNTA('FSA Micro >10'!C6:F6,'FSA Micro >10'!I6:J6,'FSA Micro >10'!C7:J7,'FSA Micro >10'!C8:F8,'FSA Micro >10'!H8,'FSA Micro >10'!J8,'FSA Micro >10'!B9:D9,'FSA Micro >10'!F9:J9,'FSA Micro >10'!B10:E10,'FSA Micro >10'!B11:C11,'FSA Micro >10'!F11:I11,'FSA Micro >10'!C12:E12,'FSA Micro >10'!D14,'FSA Micro >10'!I14:J14,'FSA Micro >10'!C16:D16,'FSA Micro >10'!D19,'FSA Micro >10'!D35:J35,'FSA Micro >10'!B36:D36,'FSA Micro >10'!F36:J36)","v":19},null,"Não",null,"Inversor 3",null,null,null,9,"Chint Power ","Serrana ","Cabernet 40000 32 L",null,"Serrana "]
[{"$f":"COUNTA('FSA Mini'!C6:F6,'FSA Mini'!I6:J6,'FSA Mini'!C7:J7,'FSA Mini'!C8:F8,'FSA Mini'!H8,'FSA Mini'!J8,'FSA Mini'!B9:D9,'FSA Mini'!F9:J9,'FSA Mini'!B10:E10,'FSA Mini'!B11:C11,'FSA Mini'!F11:I11,'FSA Mini'!C12:E12,'FSA Mini'!D14,'FSA Mini'!I14:J14,'FSA Mini'!E18:J18,'FSA Mini'!E19:J19,'FSA Mini'!C20:D20,'FSA Mini'!D23,'FSA Mini'!D39:J39,'FSA Mini'!B40:D40,'FSA Mini'!F40:J40,'FSA Mini'!C15:D15)","v":0},"Qtd cel preenchidas Dados",null,null,null,"Aprova",null,null,10,"CR2 MAXX","Schneider Electric ","Conext CL 20000E",null,"Schneider Electric "]
[null,{"$f":"COUNTA(Dados!B7,Dados!I7,Dados!B9,Dados!E9,Dados!D11,Dados!C13,Dados!C15,Dados!C20,Dados!D20,Dados!E20,Dados!C21,Dados!D21,Dados!E21,Dados!D25,Dados!D27,Dados!D29,Dados!D31,Dados!C35,Dados!C37,Dados!C39,Dados!D43,Dados!D45,Dados!D47,Dados!D49,Dados!D51,Dados!D53,Dados!D55,Dados!D57,Dados!D59)","v":29},"Tarifa branca?",null,null,null,null,null,11,"Duraluxe","Schneider Electric ","Conext CL 25000E",null,"Schneider Electric "]
[null,null,"Não",null,"Validação do formulário",null,"Se minigeração, reprova",null,12,"EAST","SCHNEIDER","Conext RL 3000E",null,"SCHNEIDER"]
["Selecione a empresa para identificação do FSA",null,null,null,"Caracterização",{"$f":"IF(MD!Q7=\"FSA Mini\",\"Reprova\",\"Aprova\")","v":"Aprova"},null,null,13,"EcoSolys","SCHNEIDER","Conext RL 5000E",null,"SCHNEIDER"]
["Coelba",null,null,null,null,null,null,null,14,"EDGE","Chint Power ","CPS SCA 12KTL","50 kW","Chint Power "]
[null,null,null,null,null,null,null,null,15,"FRONIUS","Chint Power ","CPS SCA 20KTL","60 kW","Chint Power "]
[null,null,null,null,null,null,null,null,16,"Fronius ","Chint Power ","CPS SCA 25KTL","500 kW","Chint Power "]
["Elektro","Elektro Redes S A / Central de Relacionamento com Clientes","Rua Ary Antenor de Souza, 321, Jardim Nova América, Campinas/SP","0800 020 1200 ","projeto.particular@elektro.com.br",null,null,null,17,"GINLONG","CANADIAN SOLAR","CSI1.5K-TL","33 kW","CANADIAN SOLAR"]
["Cosern","Unidade de Relacionamento com Grandes Clientes","Rua Mermoz, 150, Cidade Alta, Natal/RN","0800 084 5010","gd.cosern@neoenergia.com",null,null,null,18,"Ginlong ","Canadian Solar Inc","CSI-1.5K-TL","20 kW","Canadian Solar Inc"]
["Coelba","Unidade de Relacionamento com Poder Público e Novos Clientes","Av. Edgar Santos, 300, Narandiba, Salvador/BA","0800 071 5509","captacaodeclientes.coelba@neoenergia.com.br",null,null,null,19,"GOODWE","Canadian Solar","CSI-15KTL-GI-FL","2,5 kW","Canadian Solar"]
["Celpe","Unidade de Relacionamento com Clientes Privados","Av. João de Barros, 111, Boa Vista, Recife/PE","0800 031 1866","clientescorporativoscelpe@neoenergia.com",null,null,null,20,"Gree Eletric ","Canadian Solar","CSI-15KTL-GI-LFL","3,3 kW","Canadian Solar"]
["Neoenergia Distribuição Brasília","Gerência de Grandes Clientes","SIA Área Especial Lote C, Guará, Distrito Federal","(61) 3465-9110","grandesclientes@ceb.com.br",null,null,null,21,"GROWATT","CANADIAN SOLAR","CSI-20K-GI-FL","3,68 kW","CANADIAN SOLAR"]
[null,null,null,null,null,null,null,null,22,"Guangdong ","Canadian Solar","CSI-20KTL-GI-FL","3,8 kW","Canadian Solar"]
[null,"Comentário do projetista",null,"Barramento coletivo?","Autotrafo?",null,null,null,23,"HOYMILES","Canadian Solar","CSI-20KTL-GI-LFL","3 kW","Canadian Solar"]
[null,"Ao preencher esse projeto, percebi um problema na hora de informar a seção transversal no memorial descritivo e, consequentemente, do diagra",null,"Não","Não",null,null,null,24,"HUAWEI","CANADIAN SOLAR","CSI-25K-GI-FL","4,6 kW","CANADIAN SOLAR"]
[null,null,null,null,null,null,null,null,25,"Huawei ","Canadian Solar","CSI-25KTL-GI-FL","5 kW","Canadian Solar"]
[null,null,null,null,null,null,null,null,26,"Hummer Dynamo ","CANADIAN SOLAR","CSI-30K-GI-FL","6 kW","CANADIAN SOLAR"]
[null,null,null,null,null,null,null,null,27,"INGETEAM","Canadian Solar","CSI-30KTL-GI-FL","12 kW","Canadian Solar"]
[null,null,null,null,null,null,null,null,28,"INGETEAM POWER ","Canadian Solar","CSI-30KTL-GI-L","20 kW","Canadian Solar"]
[null,null,null,null,null,null,null,null,29,"INTELBRAS","Canadian Solar Inc","CSI-3K-TL","30 kW","Canadian Solar Inc"]
[null,null,null,null,null,null,null,null,30,"INTISOL","CANADIAN SOLAR","CSI-40K-GI-FL","30 kW","CANADIAN SOLAR"]
[null,null,null,null,null,null,null,null,31,"INVT","Canadian Solar","CSI-40KTL-GI-HFL","50 kW","Canadian Solar"]
[null,null,null,null,null,null,null,null,32,"JIANGSU GOODWE","CANADIAN SOLAR","CSI-50K-GI-FL","60 kW","CANADIAN SOLAR"]
[null,null,null,null,null,null,null,null,33,"KACO New Energy ","Canadian Solar","CSI-50KTL-GI","12 kW","Canadian Solar"]
[null,null,null,null,null,null,null,null,34,"KLNE","Canadian Solar Inc","CSI-5K-MTL","32 kW","Canadian Solar Inc"]
[null,null,null,null,null,null,null,null,35,"KOMECO","CANADIAN SOLAR","CSI-9K-TL1P-GI-FL","15 kW","CANADIAN SOLAR"]
[null,null,null,null,null,null,null,null,36,"Kstar ","Duraluxe","DS 1500TL","60 kW","Duraluxe"]
[null,null,null,null,null,null,null,null,37,"MAYLAR","Duraluxe","DS 2000TL","70 kW","Duraluxe"]
[null,null,null,null,null,null,null,null,38,"NEP","Duraluxe","DS 2800TL","75 kW","Duraluxe"]
[null,null,null,null,null,null,null,null,39,"NHS","DURALUXE","DS2800TL","80 kW","DURALUXE"]
[null,null,null,null,null,null,null,null,40,"NHS ","Guangdong ","EA30KTLSI",null,"Guangdong "]
[null,null,null,null,null,null,null,null,41,"Ningbo Ginlong ","Guangdong ","EA40KTLSI",null,"Guangdong "]
[null,null,null,null,null,null,null,null,42,"OMINKSOL","EAST","EA5KSI - INVERSOR ON GRID MONOFASICO - 200 VAC","15 kW","EAST"]
[null,null,null,null,null,null,null,null,43,"Omnik","FRONIUS","Eco 25.0-3-S","10,3 kW","FRONIUS"]
[null,null,null,null,null,null,null,null,44,"OUTBACK POWER","Fronius ","ECO 25-0-3-S","25 Kw","Fronius "]
[null,null,null,null,null,null,null,null,45,"PHB","FRONIUS","Eco 27.0-3-S","10,3 kW","FRONIUS"]
[null,null,null,null,null,null,null,null,46,"PHB Eletrônica ","Fronius ","ECO 27-0-3-S","25 kW","Fronius "]
[null,null,null,null,null,null,null,null,47,"Power-One ","EcoSolys","ecos-1000","25 kW","EcoSolys"]
[null,null,null,null,null,null,null,null,48,"REFU Elektronic ","Ecosolys","ECOS-2000","13 kW","Ecosolys"]
[null,null,null,null,null,null,null,null,49,"REFU Elektronik ","INTELBRAS","EGT 3215X",null,"INTELBRAS"]
[null,null,null,null,null,null,null,null,50,"REFUSOL","INTELBRAS","EGT12033X",null,"INTELBRAS"]
[null,null,null,null,null,null,null,null,51,"RENOVIGI","INTELBRAS","EGT12046X",null,"INTELBRAS"]
[null,null,null,null,null,null,null,null,52,"SAJ ","Ecosolys","ES GT-05K","14 kW","Ecosolys"]
[null,null,null,null,null,null,null,null,53,"SAJ SOLAR INVERTER ","Ecosolys","ES GT-12K","20 kW","Ecosolys"]
[null,null,null,null,null,null,null,null,54,"SANTERNO","Ecosolys","ES GT-15K","25 kW","Ecosolys"]
[null,null,null,null,null,null,null,null,55,"SCHNEIDER","Fronius","Fronius Primo 3.0-1","10,3 kW","Fronius"]
[null,null,null,null,null,null,null,null,56,"Schneider Electric ","Fronius","Fronius Primo 4.0-1","100 kW","Fronius"]
[null,null,null,null,null,null,null,null,57,"SERRANA","Fronius","Fronius Primo 5.0-1","100 kW","Fronius"]
[null,null,null,null,null,null,null,null,58,"Serrana ","Fronius","Fronius Primo 6.0-1","50 kW","Fronius"]
[null,null,null,null,null,null,null,null,59,"Shenzhen ","Fronius","Fronius Primo 8.2-1","60 kW","Fronius"]
[null,null,null,null,null,null,null,null,60,"SHENZHEN KSTAR","OUTBACK POWER","FXR3048A",null,"OUTBACK POWER"]
[null,null,null,null,null,null,null,null,61,"SMA","FRONIUS","Galvo 1.5-1","20 kW","FRONIUS"]
[null,null,null,null,null,null,null,null,62,"SMA Solar ","FRONIUS","Galvo 2.0-1","23 kW","FRONIUS"]
[null,null,null,null,null,null,null,null,63,"SOFAR SOLAR","FRONIUS","Galvo 2.5-1","40 kW","FRONIUS"]
[null,null,null,null,null,null,null,null,64,"Solar Energy","FRONIUS","Galvo 3.0-1","46 kW","FRONIUS"]
[null,null,null,null,null,null,null,null,65,"SOLAR ENERGY DO BRASIL (SAJ)","FRONIUS","Galvo 3.1-1","20 kW",{"$f":"K66","v":"FRONIUS"}]
[null,null,null,null,null,null,null,null,66,"SolarEdge Technologies","Ginlong ","GCI-3K-2W","20 kW","Ginlong "]
[null,null,null,null,null,null,null,null,67,"SOLIS","Ginlong ","GCI-3K-W","20 kW","Ginlong "]
[null,null,null,null,null,null,null,null,68,"Southwest Windpower ","Ginlong ","GCI-5K-2W","20 kW","Ginlong "]
[null,null,null,null,null,null,null,null,69,"SUNGROW","Gree Eletric ","GMV-Y224WM/A-X","12 kW","Gree Eletric "]
[null,null,null,null,null,null,null,null,70,"SUNGROW ","Gree Eletric ","GMV-Y224WM/B-X","15 kW","Gree Eletric "]
[null,null,null,null,null,null,null,null,71,"Thinkpower","Gree Eletric ","GMV-Y280WM/A-X","20 kW","Gree Eletric "]
[null,null,null,null,null,null,null,null,72,"WEG","Gree Eletric ","GMV-Y280WM/B-X","25 kW","Gree Eletric "]
[null,null,null,null,null,null,null,null,73,"WEG ","Gree Eletric ","GMV-Y335WM/A-X","50 kW","Gree Eletric "]
[null,null,null,null,null,null,null,null,74,null,"Gree Eletric ","GMV-Y335WM/B-X","60 kW","Gree Eletric "]
[null,null,null,null,null,null,null,null,75,null,"GROWATT","Growatt 1000TL","17 kW","GROWATT"]
[null,null,null,null,null,null,null,null,76,null,"Growatt","Growatt 11000 TL3-S","20 kW","Growatt"]
[null,null,null,null,null,null,null,null,77,null,"Growatt","Growatt 12000TL","33 kW","Growatt"]
[null,null,null,null,null,null,null,null,78,null,"Growatt","Growatt 12000TL3-S","36 kW","Growatt"]
[null,null,null,null,null,null,null,null,79,null,"Growatt","Growatt 13000T3-S","40 kW","Growatt"]
[null,null,null,null,null,null,null,null,80,null,"Growatt","Growatt 15000T3-S","42 kW","Growatt"]
[null,null,null,null,null,null,null,null,81,null,"Growatt","Growatt 15000T3-SL","50 kW","Growatt"]
[null,null,null,null,null,null,null,null,82,null,"Growatt","Growatt 15000TL3-S","60 kW","Growatt"]
[null,null,null,null,null,null,null,null,83,null,"GROWATT","Growatt 1500TL","60 kW","GROWATT"]
[null,null,null,null,null,null,null,null,84,null,"Growatt","Growatt 17000TL3-S","12 kW","Growatt"]
[null,null,null,null,null,null,null,null,85,null,"Growatt","Growatt 17000TL3-SE","15 kW","Growatt"]
[null,null,null,null,null,null,null,null,86,null,"Growatt","Growatt 20000TL3-S","17 kW","Growatt"]
[null,null,null,null,null,null,null,null,87,null,"Growatt","Growatt 20000TL3-SE","20 kW","Growatt"]
[null,null,null,null,null,null,null,null,88,null,"Growatt","Growatt 20000UE","25 kW","Growatt"]
[null,null,null,null,null,null,null,null,89,null,"GROWATT","Growatt 2000S","33 kW","GROWATT"]
[null,null,null,null,null,null,null,null,90,null,"GROWATT","Growatt 2000TL","40 kW","GROWATT"]
[null,null,null,null,null,null,null,null,91,null,"Growatt","Growatt 22000TL3-SL","50 kW","Growatt"]
[null,null,null,null,null,null,null,null,92,null,"Growatt","Growatt 25000TL3-S","60 kW","Growatt"]
[null,null,null,null,null,null,null,null,93,null,"Growatt","Growatt 25000TL3-SE","12 kW","Growatt"]
[null,null,null,null,null,null,null,null,94,null,"Growatt","Growatt 25000TL3-SL","15 kW","Growatt"]
[null,null,null,null,null,null,null,null,95,null,"Growatt","Growatt 30000TL3-S","17 kW","Growatt"]
[null,null,null,null,null,null,null,null,96,null,"Growatt","Growatt 30000TL3-SE","20 kW","Growatt"]
[null,null,null,null,null,null,null,null,97,null,"GROWATT","Growatt 3000S","12 kW","GROWATT"]
[null,null,null,null,null,null,null,null,98,null,"Growatt","Growatt 33000TL3-S","12,5 kW","Growatt"]
[null,null,null,null,null,null,null,null,99,null,"Growatt","Growatt 33000TL3-SE","15 kW","Growatt"]
[null,null,null,null,null,null,null,null,100,null,"Growatt","Growatt 40000TL3-NS","17,5 kW","Growatt"]
[null,null,null,null,null,null,null,null,101,null,"Growatt","Growatt 40000TL3-NSE","20 kW","Growatt"]
[null,null,null,null,null,null,null,null,102,null,"Growatt","Growatt 50000TL3-S","15 kW","Growatt"]
[null,null,null,null,null,null,null,null,103,null,"Growatt","Growatt 50000TL3-SE","20 kW","Growatt"]
[null,null,null,null,null,null,null,null,104,null,"Growatt","Growatt-1500 S","27,6 kW","Growatt"]
[null,null,null,null,null,null,null,null,105,null,"Growatt","Growatt-2000 S","50 kW","Growatt"]
[null,null,null,null,null,null,null,null,106,null,"Growatt","Growatt-3000 S","25 kW","Growatt"]
[null,null,null,null,null,null,null,null,107,null,"Growatt","Growatt-3600MTL-S","33 kW","Growatt"]
[null,null,null,null,null,null,null,null,108,null,"Growatt","Growatt-4200MTL-S","60 kW","Growatt"]
[null,null,null,null,null,null,null,null,109,null,"Growatt","Growatt-5500MTL-S","50 kW","Growatt"]
[null,null,null,null,null,null,null,null,110,null,"Kstar ","GSL0500",null,"Kstar "]
[null,null,null,null,null,null,null,null,111,null,"OUTBACK POWER","GVFX3648",null,"OUTBACK POWER"]
[null,null,null,null,null,null,null,null,112,null,"GOODWE","GW12KLV-MT","25 kW","GOODWE"]
[null,null,null,null,null,null,null,null,113,null,"GOODWE","GW12KN-DT","25 kW","GOODWE"]
[null,null,null,null,null,null,null,null,114,null,"JIANGSU GOODWE","GW12KN-DT",null,"JIANGSU GOODWE"]
[null,null,null,null,null,null,null,null,115,null,"GOODWE","GW15KLV-MT","25 Kw","GOODWE"]
[null,null,null,null,null,null,null,null,116,null,"JIANGSU GOODWE","GW20K-DT",null,"JIANGSU GOODWE"]
[null,null,null,null,null,null,null,null,117,null,"JIANGSU GOODWE","GW25K-DT",null,"JIANGSU GOODWE"]
[null,null,null,null,null,null,null,null,118,null,"GOODWE","GW3000-NS","30 kW","GOODWE"]
[null,null,null,null,null,null,null,null,119,null,"GOODWE","GW30KLV-MT","40 kW","GOODWE"]
[null,null,null,null,null,null,null,null,120,null,"GOODWE","GW35KLV-MT","50 kW","GOODWE"]
[null,null,null,null,null,null,null,null,121,null,"GOODWE","GW50KLV-MT","12 kW","GOODWE"]
[null,null,null,null,null,null,null,null,122,null,"JIANGSU GOODWE","GW50K-MT",null,"JIANGSU GOODWE"]
[null,null,null,null,null,null,null,null,123,null,"GOODWE","GW60KLV-MT","20 kW","GOODWE"]
[null,null,null,null,null,null,null,null,124,null,"Hummer Dynamo ","HG-50k",null,"Hummer Dynamo "]
[null,null,null,null,null,null,null,null,125,null,"FRONIUS","IG Plus 100-150V-3","30 kW","FRONIUS"]
[null,null,null,null,null,null,null,null,126,null,"FRONIUS","IG Plus 120-150V-3","30 kW","FRONIUS"]
[null,null,null,null,null,null,null,null,127,null,"FRONIUS","IG Plus 25-100V-1","50 kW","FRONIUS"]
[null,null,null,null,null,null,null,null,128,null,"FRONIUS","IG Plus 30-100V-1","60 kW","FRONIUS"]
[null,null,null,null,null,null,null,null,129,null,"FRONIUS","IG Plus 35-100V-1","17 kW",{"$f":"K130","v":"FRONIUS"}]
[null,null,null,null,null,null,null,null,130,null,"FRONIUS","IG Plus 50-100V-1","26,4 kW","FRONIUS"]
[null,null,null,null,null,null,null,null,131,null,"FRONIUS","IG Plus 55-100V-1","75 kW","FRONIUS"]
[null,null,null,null,null,null,null,null,132,null,"FRONIUS","IG Plus 55-100V-2","12 kW","FRONIUS"]
[null,null,null,null,null,null,null,null,133,null,"FRONIUS","IG Plus 55-150V-3","20 kW","FRONIUS"]
[null,null,null,null,null,null,null,null,134,null,"FRONIUS","IG Plus 60-100V-1","36 kW","FRONIUS"]
[null,null,null,null,null,null,null,null,135,null,"FRONIUS","IG Plus 60-100V-2","50kW","FRONIUS"]
[null,null,null,null,null,null,null,null,136,null,"FRONIUS","IG Plus 60-150V-3","60 kW","FRONIUS"]
[null,null,null,null,null,null,null,null,137,null,"FRONIUS","IG Plus 70-100V-1","75 kW","FRONIUS"]
[null,null,null,null,null,null,null,null,138,null,"FRONIUS","IG Plus 70-100V-2","13,2 kW","FRONIUS"]
[null,null,null,null,null,null,null,null,139,null,"FRONIUS","IG Plus 80-150V-3","18 Kw","FRONIUS"]
[null,null,null,null,null,null,null,null,140,null,"INVT","IMARS BG25KTR",null,"INVT"]
[null,null,null,null,null,null,null,null,141,null,"INGETEAM POWER ","INGECON SUN 100TLM",null,"INGETEAM POWER "]
[null,null,null,null,null,null,null,null,142,null,"INGETEAM POWER ","Ingecon Sun 10TL",null,"INGETEAM POWER "]
[null,null,null,null,null,null,null,null,143,null,"INGETEAM POWER ","Ingecon Sun 10TL M",null,"INGETEAM POWER "]
[null,null,null,null,null,null,null,null,144,null,"INGETEAM POWER ","Ingecon Sun 15TL M",null,"INGETEAM POWER "]
[null,null,null,null,null,null,null,null,145,null,"INGETEAM","Ingecon Sun 2.5TL M",null,"INGETEAM"]
[null,null,null,null,null,null,null,null,146,null,"INGETEAM","Ingecon Sun 2.7TL M",null,"INGETEAM"]
[null,null,null,null,null,null,null,null,147,null,"INGETEAM POWER ","Ingecon Sun 20TL",null,"INGETEAM POWER "]
[null,null,null,null,null,null,null,null,148,null,"INGETEAM POWER ","Ingecon Sun 20TL M",null,"INGETEAM POWER "]
[null,null,null,null,null,null,null,null,149,null,"INGETEAM POWER ","INGECON SUN 28TL M",null,"INGETEAM POWER "]
[null,null,null,null,null,null,null,null,150,null,"INGETEAM","Ingecon Sun 3.3TL M",null,"INGETEAM"]
[null,null,null,null,null,null,null,null,151,null,"INGETEAM","Ingecon Sun 3.68TL M",null,"INGETEAM"]
[null,null,null,null,null,null,null,null,152,null,"INGETEAM POWER ","INGECON SUN 33TL M",null,"INGETEAM POWER "]
[null,null,null,null,null,null,null,null,153,null,"INGETEAM","Ingecon Sun 3TL M",null,"INGETEAM"]
[null,null,null,null,null,null,null,null,154,null,"INGETEAM","Ingecon Sun 4.6TL M",null,"INGETEAM"]
[null,null,null,null,null,null,null,null,155,null,"INGETEAM","Ingecon Sun 5.5TL M",null,"INGETEAM"]
[null,null,null,null,null,null,null,null,156,null,"INGETEAM","Ingecon Sun 5TL M",null,"INGETEAM"]
[null,null,null,null,null,null,null,null,157,null,"INGETEAM","Ingecon Sun 6TL M",null,"INGETEAM"]
[null,null,null,null,null,null,null,null,158,null,"INGETEAM POWER ","Ingecon Uwind 2.5TL",null,"INGETEAM POWER "]
[null,null,null,null,null,null,null,null,159,null,"INGETEAM POWER ","Ingecon uWIND 3.3TL",null,"INGETEAM POWER "]
[null,null,null,null,null,null,null,null,160,null,"INGETEAM POWER ","Ingecon uWIND 3.68TL",null,"INGETEAM POWER "]
[null,null,null,null,null,null,null,null,161,null,"INGETEAM POWER ","Ingecon uWIND 3.8TL",null,"INGETEAM POWER "]
[null,null,null,null,null,null,null,null,162,null,"INGETEAM POWER ","Ingecon uWIND 3TL",null,"INGETEAM POWER "]
[null,null,null,null,null,null,null,null,163,null,"INGETEAM POWER ","Ingecon uWIND 4.6TL",null,"INGETEAM POWER "]
[null,null,null,null,null,null,null,null,164,null,"INGETEAM POWER ","Ingecon uWIND 5TL",null,"INGETEAM POWER "]
[null,null,null,null,null,null,null,null,165,null,"INGETEAM POWER ","Ingecon uWIND 6TL",null,"INGETEAM POWER "]
[null,null,null,null,null,null,null,null,166,null,"Ingeteam","IngeconSun 3 TL M",null,"Ingeteam"]
[null,null,null,null,null,null,null,null,167,null,"Ingeteam","IngeconSun 5 TL M",null,"Ingeteam"]
[null,null,null,null,null,null,null,null,168,null,"INGETEAM","INGETEAM 55TL - 220-220V",null,"INGETEAM"]
[null,null,null,null,null,null,null,null,169,null,"KOMECO","INVERSOR KOFV IN 12KW – AR",null,"KOMECO"]
[null,null,null,null,null,null,null,null,170,null,"KOMECO","INVERSOR KOFV IN 20KW – AR",null,"KOMECO"]
[null,null,null,null,null,null,null,null,171,null,"KOMECO","INVERSOR KOFV IN 30KW – AR",null,"KOMECO"]
[null,null,null,null,null,null,null,null,172,null,"KOMECO","INVERSOR KOFV IN 50KW – AR",null,"KOMECO"]
[null,null,null,null,null,null,null,null,173,null,"KOMECO","INVERSOR KOFV IN 60KW – AR",null,"KOMECO"]
[null,null,null,null,null,null,null,null,174,null,"SHENZHEN KSTAR","KSG-1.5K-SM",null,"SHENZHEN KSTAR"]
[null,null,null,null,null,null,null,null,175,null,"Kstar ","KSG-12K",null,"Kstar "]
[null,null,null,null,null,null,null,null,176,null,"Kstar ","KSG-15K",null,"Kstar "]
[null,null,null,null,null,null,null,null,177,null,"Kstar ","KSG-20K",null,"Kstar "]
[null,null,null,null,null,null,null,null,178,null,"Kstar ","KSG-30K",null,"Kstar "]
[null,null,null,null,null,null,null,null,179,null,"Kstar ","KSG-32K",null,"Kstar "]
[null,null,null,null,null,null,null,null,180,null,"SHENZHEN KSTAR","KSG-3K-SM",null,"SHENZHEN KSTAR"]
[null,null,null,null,null,null,null,null,181,null,"Kstar ","KSG-50K",null,"Kstar "]
[null,null,null,null,null,null,null,null,182,null,"SHENZHEN KSTAR","KSG-5K-DM",null,"SHENZHEN KSTAR"]
[null,null,null,null,null,null,null,null,183,null,"Kstar ","KSG-60K",null,"Kstar "]
[null,null,null,null,null,null,null,null,184,null,"SHENZHEN KSTAR","KSG-6K",null,"SHENZHEN KSTAR"]
[null,null,null,null,null,null,null,null,185,null,"Kstar ","KSL0500",null,"Kstar "]
[null,null,null,null,null,null,null,null,186,null,"SANTERNO","M Plus 2600",null,"SANTERNO"]
[null,null,null,null,null,null,null,null,187,null,"SANTERNO","M Plus 3600",null,"SANTERNO"]
[null,null,null,null,null,null,null,null,188,null,"SANTERNO","M Plus 3600E",null,"SANTERNO"]
[null,null,null,null,null,null,null,null,189,null,"SANTERNO","M Plus 4300",null,"SANTERNO"]
[null,null,null,null,null,null,null,null,190,null,"SANTERNO","M Plus 4300E",null,"SANTERNO"]
[null,null,null,null,null,null,null,null,191,null,"SANTERNO","M Plus 4600TL",null,"SANTERNO"]
[null,null,null,null,null,null,null,null,192,null,"SANTERNO","M Plus 5000TL",null,"SANTERNO"]
[null,null,null,null,null,null,null,null,193,null,"SANTERNO","M Plus 5300",null,{"$f":"K194","v":"SANTERNO"}]
[null,null,null,null,null,null,null,null,194,null,"SANTERNO","M Plus 6000TL",null,"SANTERNO"]
[null,null,null,null,null,null,null,null,195,null,"SANTERNO","M Plus 6400",null,"SANTERNO"]
[null,null,null,null,null,null,null,null,196,null,"SANTERNO","M Plus 7500TL",null,"SANTERNO"]
[null,null,null,null,null,null,null,null,197,null,"SANTERNO","M Plus 7800",null,"SANTERNO"]
[null,null,null,null,null,null,null,null,198,null,"Growatt","Max 50KTL3 LV","60 kW","Growatt"]
[null,null,null,null,null,null,null,null,199,null,"Growatt","Max 60KTL3 LV",null,"Growatt"]
[null,null,null,null,null,null,null,null,200,null,"Growatt","Max 70KTL3 LV",null,"Growatt"]
[null,null,null,null,null,null,null,null,201,null,"Growatt","Max 75KTL3 LV",null,"Growatt"]
[null,null,null,null,null,null,null,null,202,null,"Growatt","Max 80KTL3 LV",null,"Growatt"]
[null,null,null,null,null,null,null,null,203,null,"MAYLAR","MAYSUN 1200W",null,"MAYLAR"]
[null,null,null,null,null,null,null,null,204,null,"HOYMILES","MI-250",null,"HOYMILES"]
[null,null,null,null,null,null,null,null,205,null,"HOYMILES","MI-250-MI-1200",null,"HOYMILES"]
[null,null,null,null,null,null,null,null,206,null,"HOYMILES","MI-500",null,"HOYMILES"]
[null,null,null,null,null,null,null,null,207,null,"HOYMILES","MI-500-MI-1200",null,"HOYMILES"]
[null,null,null,null,null,null,null,null,208,null,"NHS ","NHS SOLAR – 15K - GDM1",null,"NHS "]
[null,null,null,null,null,null,null,null,209,null,"NHS ","NHS SOLAR – 25K - GDM1",null,"NHS "]
[null,null,null,null,null,null,null,null,210,null,"NHS","NHS SOLAR 1K5-GSM1",null,"NHS"]
[null,null,null,null,null,null,null,null,211,null,"NHS","NHS SOLAR 3K-GSM1",null,"NHS"]
[null,null,null,null,null,null,null,null,212,null,"NHS","NHS SOLAR 5K-GDM1",null,"NHS"]
[null,null,null,null,null,null,null,null,213,null,"Omnik","Omniksol-13k-tl3",null,"Omnik"]
[null,null,null,null,null,null,null,null,214,null,"OMINKSOL","Omniksol-3k-TL2",null,"OMINKSOL"]
[null,null,null,null,null,null,null,null,215,null,"OMINKSOL","Omniksol-4k-TL2",null,"OMINKSOL"]
[null,null,null,null,null,null,null,null,216,null,"OMINKSOL","Omniksol-5k-TL2",null,"OMINKSOL"]
[null,null,null,null,null,null,null,null,217,null,null,"Outro",null,{"$f":"K218","v":0}]
[null,null,null,null,null,null,null,null,218,null,"PHB","PHB 14K-DT",null,"PHB"]
[null,null,null,null,null,null,null,null,219,null,"PHB","PHB 1500-SS",null,"PHB"]
[null,null,null,null,null,null,null,null,220,null,"PHB","PHB 20K-DT",null,"PHB"]
[null,null,null,null,null,null,null,null,221,null,"PHB","PHB 25K-DT",null,"PHB"]
[null,null,null,null,null,null,null,null,222,null,"PHB","PHB 3000-SS",null,"PHB"]
[null,null,null,null,null,null,null,null,223,null,"PHB","PHB 4600-SS",null,"PHB"]
[null,null,null,null,null,null,null,null,224,null,"PHB","PHB14K-DT",null,"PHB"]
[null,null,null,null,null,null,null,null,225,null,"PHB Eletrônica ","PHB14K-DT",null,"PHB Eletrônica "]
[null,null,null,null,null,null,null,null,226,null,"PHB","PHB1500-NS",null,"PHB"]
[null,null,null,null,null,null,null,null,227,null,"PHB","PHB1500-SS",null,"PHB"]
[null,null,null,null,null,null,null,null,228,null,"PHB Eletrônica ","PHB20K-DT",null,"PHB Eletrônica "]
[null,null,null,null,null,null,null,null,229,null,"PHB","PHB25K-DT",null,"PHB"]
[null,null,null,null,null,null,null,null,230,null,"PHB Eletrônica ","PHB25K-DT",null,"PHB Eletrônica "]
[null,null,null,null,null,null,null,null,231,null,"PHB","PHB3000-NS",null,"PHB"]
[null,null,null,null,null,null,null,null,232,null,"PHB","PHB3000-SS",null,"PHB"]
[null,null,null,null,null,null,null,null,233,null,"PHB Eletrônica ","PHB35K-MT",null,"PHB Eletrônica "]
[null,null,null,null,null,null,null,null,234,null,"PHB","PHB35K-MT (220/127V)",null,"PHB"]
[null,null,null,null,null,null,null,null,235,null,"PHB","PHB4600-SS",null,"PHB"]
[null,null,null,null,null,null,null,null,236,null,"PHB","PHB5000D-NS",null,"PHB"]
[null,null,null,null,null,null,null,null,237,null,"PHB Eletrônica ","PHB5000D-NS",null,"PHB Eletrônica "]
[null,null,null,null,null,null,null,null,238,null,"PHB Eletrônica ","PHB60K-MT",null,"PHB Eletrônica "]
[null,null,null,null,null,null,null,null,239,null,"PHB","PHB60K-MT (380/220V)",null,"PHB"]
[null,null,null,null,null,null,null,null,240,null,"KACO New Energy ","Powador 60.0 TL3",null,"KACO New Energy "]
[null,null,null,null,null,null,null,null,241,null,"FRONIUS","Primo 3.0-1","60 kW","FRONIUS"]
[null,null,null,null,null,null,null,null,242,null,"FRONIUS","Primo 3.5-1","30 kW","FRONIUS"]
[null,null,null,null,null,null,null,null,243,null,"FRONIUS","Primo 3.6-1","20 kW","FRONIUS"]
[null,null,null,null,null,null,null,null,244,null,"FRONIUS","Primo 4.0-1","3,7 kW","FRONIUS"]
[null,null,null,null,null,null,null,null,245,null,"FRONIUS","Primo 4.6-1","25 kW","FRONIUS"]
[null,null,null,null,null,null,null,null,246,null,"FRONIUS","Primo 5.0-1","4,6 kW","FRONIUS"]
[null,null,null,null,null,null,null,null,247,null,"FRONIUS","Primo 6.0-1","12 kW","FRONIUS"]
[null,null,null,null,null,null,null,null,248,null,"FRONIUS","Primo 8.2-1","15 kW","FRONIUS"]
[null,null,null,null,null,null,null,null,249,null,"ABB","PRO-33.0-TL-OUTD-400","15 kW","ABB"]
[null,null,null,null,null,null,null,null,250,null,"ABB ","PRO-33.0-TL-OUTD-400","20 kW","ABB "]
[null,null,null,null,null,null,null,null,251,null,"ABB","PRO-33.0-TL-OUTD-S400","12 kW","ABB"]
[null,null,null,null,null,null,null,null,252,null,"ABB ","PRO-33.0-TL-OUTD-S-400","20 kW","ABB "]
[null,null,null,null,null,null,null,null,253,null,"ABB","PRO-33.0-TL-OUTD-SX400","20 kW","ABB"]
[null,null,null,null,null,null,null,null,254,null,"ABB ","PRO-33.0-TL-OUTD-SX-400","20 kW","ABB "]
[null,null,null,null,null,null,null,null,255,null,"ABB","PVI 10.0-TL-OUTD","30 kW","ABB"]
[null,null,null,null,null,null,null,null,256,null,"ABB","PVI 10.0-TL-OUTD-FS","40 kW","ABB"]
[null,null,null,null,null,null,null,null,257,null,"ABB","PVI 10.0-TL-OUTD-S","20 kW","ABB"]
[null,null,null,null,null,null,null,null,258,null,"ABB","PVI 12.5-TL-OUTD","25 kW","ABB"]
[null,null,null,null,null,null,null,null,259,null,"ABB ","PVI 12.5-TL-OUTD","22 kW","ABB "]
[null,null,null,null,null,null,null,null,260,null,"ABB","PVI 12.5-TL-OUTD-FS","12 kW","ABB"]
[null,null,null,null,null,null,null,null,261,null,"ABB","PVI 12.5-TL-OUTD-S","20 kW","ABB"]
[null,null,null,null,null,null,null,null,262,null,"ABB","PVI 3.0-TL-OUTD","25 kW","ABB"]
[null,null,null,null,null,null,null,null,263,null,"ABB","PVI 3.0-TL-OUTD-S","15 kW","ABB"]
[null,null,null,null,null,null,null,null,264,null,"ABB","PVI 3.6-TL-OUTD","15 kW","ABB"]
[null,null,null,null,null,null,null,null,265,null,"ABB","PVI 3.8-TL-OUTD","20 kW","ABB"]
[null,null,null,null,null,null,null,null,266,null,"ABB","PVI 4.2-TL-OUTD","20 kW","ABB"]
[null,null,null,null,null,null,null,null,267,null,"ABB","PVI 4.6-TL-OUTD","25 kW","ABB"]
[null,null,null,null,null,null,null,null,268,null,"ABB","PVI 5000-TL-OUTD","30 kW","ABB"]
[null,null,null,null,null,null,null,null,269,null,"ABB","PVI 6000-TL-OUTD","30 kW","ABB"]
[null,null,null,null,null,null,null,null,270,null,"ABB ","PVI-10.0-TL-OUTD","25 kW","ABB "]
[null,null,null,null,null,null,null,null,271,null,"ABB ","PVI-10.0-TL-OUTD-FS","25 kW","ABB "]
[null,null,null,null,null,null,null,null,272,null,"ABB ","PVI-10.0-TL-OUTD-S","25 kW","ABB "]
[null,null,null,null,null,null,null,null,273,null,"ABB","PVI-3.0-TL-OUTD-S","40 kW","ABB"]
[null,null,null,null,null,null,null,null,274,null,"ABB","PVI-3.6-TL-OUTD-S","50 kW","ABB"]
[null,null,null,null,null,null,null,null,275,null,"ABB","PVI-4.2-TL-OUTD-S","30 kW","ABB"]
[null,null,null,null,null,null,null,null,276,null,"ABB","PVI-5000-TL-OUTD-S","40 kW","ABB"]
[null,null,null,null,null,null,null,null,277,null,"ABB","PVI-55.0","25 kW","ABB"]
[null,null,null,null,null,null,null,null,278,null,"ABB","PVI-6000-TL-OUTD-S","27 kW","ABB"]
[null,null,null,null,null,null,null,null,279,null,"ABB ","PVS-100-TL","30 kW","ABB "]
[null,null,null,null,null,null,null,null,280,null,"ABB ","PVS-100-TL-SX2-FULL","30 kW","ABB "]
[null,null,null,null,null,null,null,null,281,null,"ABB ","PVS-50-TL(-S)(-SX)(-SX2)","33 kW",{"$f":"K282","v":"ABB "}]
[null,null,null,null,null,null,null,null,282,null,"ABB ","PVS-60-TL(-S)(-SX)(-SX2)","33 kW","ABB "]
[null,null,null,null,null,null,null,null,283,null,"APSYSTEMS","QS1","12 kW","APSYSTEMS"]
[null,null,null,null,null,null,null,null,284,null,"REFUSOL","REFUone 3K-2T",null,"REFUSOL"]
[null,null,null,null,null,null,null,null,285,null,"REFUSOL","REFUone 5K-2T",null,"REFUSOL"]
[null,null,null,null,null,null,null,null,286,null,"REFUSOL","REFUone 7K-2T",null,"REFUSOL"]
[null,null,null,null,null,null,null,null,287,null,"REFU Elektronik ","REFUsol 20K",null,"REFU Elektronik "]
[null,null,null,null,null,null,null,null,288,null,"REFU Elektronic ","REFUsol 23K",null,"REFU Elektronic "]
[null,null,null,null,null,null,null,null,289,null,"REFU Elektronik ","REFUsol 40K",null,"REFU Elektronik "]
[null,null,null,null,null,null,null,null,290,null,"REFU Elektronik ","REFUsol 46K",null,"REFU Elektronik "]
[null,null,null,null,null,null,null,null,291,null,"REFUSOL","REFUsol 801P003200",null,"REFUSOL"]
[null,null,null,null,null,null,null,null,292,null,"REFUSOL","REFUsol 801P007200",null,"REFUSOL"]
[null,null,null,null,null,null,null,null,293,null,"REFUSOL","REFUsol 840P040010",null,"REFUSOL"]
[null,null,null,null,null,null,null,null,294,null,"REFUSOL","REFUsol 867P020.010",null,"REFUSOL"]
[null,null,null,null,null,null,null,null,295,null,"RENOVIGI","RENO-10K",null,"RENOVIGI"]
[null,null,null,null,null,null,null,null,296,null,"RENOVIGI","RENO-20K-LV",null,"RENOVIGI"]
[null,null,null,null,null,null,null,null,297,null,"Renovigi","RENO-20K-LV (SOLIS)",null,"Renovigi"]
[null,null,null,null,null,null,null,null,298,null,"RENOVIGI","RENO3000",null,"RENOVIGI"]
[null,null,null,null,null,null,null,null,299,null,"Renovigi","RENO30K",null,"Renovigi"]
[null,null,null,null,null,null,null,null,300,null,"RENOVIGI","RENO-30K",null,"RENOVIGI"]
[null,null,null,null,null,null,null,null,301,null,"Renovigi","RENO30K-LV",null,"Renovigi"]
[null,null,null,null,null,null,null,null,302,null,"RENOVIGI","RENO-30K-LV",null,"RENOVIGI"]
[null,null,null,null,null,null,null,null,303,null,"RENOVIGI","RENO-3K PLUS",null,"RENOVIGI"]
[null,null,null,null,null,null,null,null,304,null,"RENOVIGI","RENO-4K PLUS",null,"RENOVIGI"]
[null,null,null,null,null,null,null,null,305,null,"RENOVIGI","RENO500",null,"RENOVIGI"]
[null,null,null,null,null,null,null,null,306,null,"Renovigi","RENO50K",null,"Renovigi"]
[null,null,null,null,null,null,null,null,307,null,"RENOVIGI","RENO-50K",null,"RENOVIGI"]
[null,null,null,null,null,null,null,null,308,null,"RENOVIGI","RENO560",null,"RENOVIGI"]
[null,null,null,null,null,null,null,null,309,null,"RENOVIGI","RENO560-LV",null,"RENOVIGI"]
[null,null,null,null,null,null,null,null,310,null,"RENOVIGI","RENO-5K PLUS",null,"RENOVIGI"]
[null,null,null,null,null,null,null,null,311,null,"Renovigi","RENO60K",null,"Renovigi"]
[null,null,null,null,null,null,null,null,312,null,"RENOVIGI","RENO-60K",null,"RENOVIGI"]
[null,null,null,null,null,null,null,null,313,null,"RENOVIGI","RENO-8K",null,"RENOVIGI"]
[null,null,null,null,null,null,null,null,314,null,"Thinkpower","S3000TL",null,"Thinkpower"]
[null,null,null,null,null,null,null,null,315,null,"SMA","SB 1.5-1VL-40",null,"SMA"]
[null,null,null,null,null,null,null,null,316,null,"SMA","SB 2.5-1VL-40",null,"SMA"]
[null,null,null,null,null,null,null,null,317,null,"EDGE","SE - 100K","35 kW","EDGE"]
[null,null,null,null,null,null,null,null,318,null,"EDGE","SE - 17K","5 kW","EDGE"]
[null,null,null,null,null,null,null,null,319,null,"EDGE","SE - 25K","60 kW","EDGE"]
[null,null,null,null,null,null,null,null,320,null,"EDGE","SE - 27.6K","49,9 kW","EDGE"]
[null,null,null,null,null,null,null,null,321,null,"EDGE","SE - 33.3K","33 kW","EDGE"]
[null,null,null,null,null,null,null,null,322,null,"EDGE","SE - 55K","33 kW","EDGE"]
[null,null,null,null,null,null,null,null,323,null,"EDGE","SE - 75K","33 kW","EDGE"]
[null,null,null,null,null,null,null,null,324,null,"EDGE","SE - 82.8K","12,5 kW","EDGE"]
[null,null,null,null,null,null,null,null,325,null,"SOLAR ENERGY DO BRASIL (SAJ)","SE (Sununo) TL 1.5K",null,"SOLAR ENERGY DO BRASIL (SAJ)"]
[null,null,null,null,null,null,null,null,326,null,"SOLAR ENERGY DO BRASIL (SAJ)","SE (Sununo) TL 2K",null,"SOLAR ENERGY DO BRASIL (SAJ)"]
[null,null,null,null,null,null,null,null,327,null,"SOLAR ENERGY DO BRASIL (SAJ)","SE (Sununo) TL 3KA",null,"SOLAR ENERGY DO BRASIL (SAJ)"]
[null,null,null,null,null,null,null,null,328,null,"SOLAR ENERGY DO BRASIL (SAJ)","SE (Sununo) TL 3KB",null,"SOLAR ENERGY DO BRASIL (SAJ)"]
[null,null,null,null,null,null,null,null,329,null,"SOLAR ENERGY DO BRASIL (SAJ)","SE (Sununo) TL 4KA",null,"SOLAR ENERGY DO BRASIL (SAJ)"]
[null,null,null,null,null,null,null,null,330,null,"SOLAR ENERGY DO BRASIL (SAJ)","SE (Sununo) TL 4KB",null,"SOLAR ENERGY DO BRASIL (SAJ)"]
[null,null,null,null,null,null,null,null,331,null,"SOLAR ENERGY DO BRASIL (SAJ)","SE (Sununo) TL 5K",null,"SOLAR ENERGY DO BRASIL (SAJ)"]
[null,null,null,null,null,null,null,null,332,null,"SolarEdge Technologies","SE17K",null,"SolarEdge Technologies"]
[null,null,null,null,null,null,null,null,333,null,"SolarEdge Technologies","SE27.6K",null,"SolarEdge Technologies"]
[null,null,null,null,null,null,null,null,334,null,"SolarEdge Technologies","SE75K",null,"SolarEdge Technologies"]
[null,null,null,null,null,null,null,null,335,null,"Solar Energy","SE-TL2K",null,"Solar Energy"]
[null,null,null,null,null,null,null,null,336,null,"Solar Energy","SE-TL3KA",null,"Solar Energy"]
[null,null,null,null,null,null,null,null,337,null,"Solar Energy","SE-TL3KB",null,"Solar Energy"]
[null,null,null,null,null,null,null,null,338,null,"Solar Energy","SE-TL4K",null,"Solar Energy"]
[null,null,null,null,null,null,null,null,339,null,"Solar Energy","SE-TL5K",null,"Solar Energy"]
[null,null,null,null,null,null,null,null,340,null,"B&B Power","SF1600TL","100 kW","B&B Power"]
[null,null,null,null,null,null,null,null,341,null,"B&B POWER","SF3000TL","10 kW","B&B POWER"]
[null,null,null,null,null,null,null,null,342,null,"B&B POWER","SF3K-TN","10 kW","B&B POWER"]
[null,null,null,null,null,null,null,null,343,null,"B&B POWER","SF5000TL","15 kW","B&B POWER"]
[null,null,null,null,null,null,null,null,344,null,"B&B POWER","SF5K-TN","20 kW","B&B POWER"]
[null,null,null,null,null,null,null,null,345,null,"SUNGROW ","SG12KTL-M",null,{"$f":"K346","v":"SUNGROW "}]
[null,null,null,null,null,null,null,null,346,null,"SUNGROW ","SG20KTL-M",null,"SUNGROW "]
[null,null,null,null,null,null,null,null,347,null,"SUNGROW","SG2K-S",null,"SUNGROW"]
[null,null,null,null,null,null,null,null,348,null,"SUNGROW","SG36KTL-M",null,"SUNGROW"]
[null,null,null,null,null,null,null,null,349,null,"SUNGROW ","SG36KTL-M",null,"SUNGROW "]
[null,null,null,null,null,null,null,null,350,null,"SUNGROW","SG3K-S",null,"SUNGROW"]
[null,null,null,null,null,null,null,null,351,null,"SUNGROW","SG4K-D",null,"SUNGROW"]
[null,null,null,null,null,null,null,null,352,null,"SUNGROW ","SG50CX",null,"SUNGROW "]
[null,null,null,null,null,null,null,null,353,null,"SUNGROW","SG5K-D",null,"SUNGROW"]
[null,null,null,null,null,null,null,null,354,null,"SUNGROW","SG60KTL",null,"SUNGROW"]
[null,null,null,null,null,null,null,null,355,null,"SUNGROW","SG6K-D",null,"SUNGROW"]
[null,null,null,null,null,null,null,null,356,null,"SMA Solar ","SHP 75-10",null,"SMA Solar "]
[null,null,null,null,null,null,null,null,357,null,"WEG","SIW 300 M015",null,"WEG"]
[null,null,null,null,null,null,null,null,358,null,"WEG","SIW 300 M025",null,"WEG"]
[null,null,null,null,null,null,null,null,359,null,"WEG","SIW 300 M030",null,"WEG"]
[null,null,null,null,null,null,null,null,360,null,"WEG","SIW 300 M050",null,"WEG"]
[null,null,null,null,null,null,null,null,361,null,"WEG","SIW 300H-M030",null,"WEG"]
[null,null,null,null,null,null,null,null,362,null,"WEG","SIW 300H-M050",null,"WEG"]
[null,null,null,null,null,null,null,null,363,null,"WEG","SIW 500H-ST010",null,"WEG"]
[null,null,null,null,null,null,null,null,364,null,"WEG","SIW 500H-ST013",null,"WEG"]
[null,null,null,null,null,null,null,null,365,null,"WEG","SIW 500H-ST020",null,"WEG"]
[null,null,null,null,null,null,null,null,366,null,"WEG","SIW 500H-ST030",null,"WEG"]
[null,null,null,null,null,null,null,null,367,null,"WEG","SIW 500H-ST040",null,"WEG"]
[null,null,null,null,null,null,null,null,368,null,"WEG","SIW 500H-ST060",null,"WEG"]
[null,null,null,null,null,null,null,null,369,null,"WEG ","SIW500H ST013",null,"WEG "]
[null,null,null,null,null,null,null,null,370,null,"WEG ","SIW500H ST018",null,"WEG "]
[null,null,null,null,null,null,null,null,371,null,"WEG ","SIW500H ST060",null,"WEG "]
[null,null,null,null,null,null,null,null,372,null,"WEG ","SIW500H-ST030",null,"WEG "]
[null,null,null,null,null,null,null,null,373,null,"WEG ","SIW600 T020-44",null,"WEG "]
[null,null,null,null,null,null,null,null,374,null,"Southwest Windpower ","Skystream 3.7",null,"Southwest Windpower "]
[null,null,null,null,null,null,null,null,375,null,"WEG ","SMA 25000TL-30",null,"WEG "]
[null,null,null,null,null,null,null,null,376,null,"WEG ","SMA SB 5000TL- 21",null,"WEG "]
[null,null,null,null,null,null,null,null,377,null,"INTISOL","SMP-600",null,"INTISOL"]
[null,null,null,null,null,null,null,null,378,null,"SOFAR SOLAR","SOFAR 11KTL-X",null,"SOFAR SOLAR"]
[null,null,null,null,null,null,null,null,379,null,"Shenzhen ","SOFAR 12KTL-X",null,"Shenzhen "]
[null,null,null,null,null,null,null,null,380,null,"Shenzhen ","SOFAR 15000TL",null,"Shenzhen "]
[null,null,null,null,null,null,null,null,381,null,"Shenzhen ","SOFAR 20000TL",null,"Shenzhen "]
[null,null,null,null,null,null,null,null,382,null,"Shenzhen ","SOFAR 20000TL-G2",null,"Shenzhen "]
[null,null,null,null,null,null,null,null,383,null,"Shenzhen ","SOFAR 20000TL-SX",null,"Shenzhen "]
[null,null,null,null,null,null,null,null,384,null,"Shenzhen ","SOFAR 25000 TL G2",null,"Shenzhen "]
[null,null,null,null,null,null,null,null,385,null,"Shenzhen ","SOFAR 25000TL",null,"Shenzhen "]
[null,null,null,null,null,null,null,null,386,null,"SOFAR SOLAR","SOFAR 25000TL-G2",null,"SOFAR SOLAR"]
[null,null,null,null,null,null,null,null,387,null,"Shenzhen ","SOFAR 30000 TL G2",null,"Shenzhen "]
[null,null,null,null,null,null,null,null,388,null,"Shenzhen ","SOFAR 30000TL",null,"Shenzhen "]
[null,null,null,null,null,null,null,null,389,null,"SOFAR SOLAR","SOFAR 30000TL-G2",null,"SOFAR SOLAR"]
[null,null,null,null,null,null,null,null,390,null,"SOFAR SOLAR","SOFAR 3000TL",null,"SOFAR SOLAR"]
[null,null,null,null,null,null,null,null,391,null,"Shenzhen ","SOFAR 33000TL",null,"Shenzhen "]
[null,null,null,null,null,null,null,null,392,null,"Shenzhen ","SOFAR 33000TL G2",null,"Shenzhen "]
[null,null,null,null,null,null,null,null,393,null,"SOFAR SOLAR","SOFAR 33000TL-G2",null,"SOFAR SOLAR"]
[null,null,null,null,null,null,null,null,394,null,"Shenzhen ","SOFAR 50000TL",null,"Shenzhen "]
[null,null,null,null,null,null,null,null,395,null,"SOFAR SOLAR","SOFAR 5KTLM-G2",null,"SOFAR SOLAR"]
[null,null,null,null,null,null,null,null,396,null,"Shenzhen ","SOFAR 60000TL",null,"Shenzhen "]
[null,null,null,null,null,null,null,null,397,null,"SOFAR SOLAR","SOFAR 70000TL-HV",null,"SOFAR SOLAR"]
[null,null,null,null,null,null,null,null,398,null,"Ningbo Ginlong ","Solis-15k-LV",null,"Ningbo Ginlong "]
[null,null,null,null,null,null,null,null,399,null,"SOLIS","Solis-1P5K - 4G",null,"SOLIS"]
[null,null,null,null,null,null,null,null,400,null,"Ningbo Ginlong ","Solis-20k",null,"Ningbo Ginlong "]
[null,null,null,null,null,null,null,null,401,null,"Ningbo Ginlong ","Solis-20k-LV",null,"Ningbo Ginlong "]
[null,null,null,null,null,null,null,null,402,null,"Ningbo Ginlong ","Solis-25K",null,"Ningbo Ginlong "]
[null,null,null,null,null,null,null,null,403,null,"Ningbo Ginlong ","Solis-25k-LV",null,"Ningbo Ginlong "]
[null,null,null,null,null,null,null,null,404,null,"Ningbo Ginlong ","Solis-30k",null,"Ningbo Ginlong "]
[null,null,null,null,null,null,null,null,405,null,"GINLONG","SOLIS-30K-LV","60 kW","GINLONG"]
[null,null,null,null,null,null,null,null,406,null,"Solis","Solis-3P12K-4G",null,"Solis"]
[null,null,null,null,null,null,null,null,407,null,"Solis","Solis-40K",null,"Solis"]
[null,null,null,null,null,null,null,null,408,null,"Ningbo Ginlong ","Solis-50K",null,"Ningbo Ginlong "]
[null,null,null,null,null,null,null,null,409,null,"GINLONG","SOLIS-50k-4G","15 kW",{"$f":"K410","v":"GINLONG"}]
[null,null,null,null,null,null,null,null,410,null,"GINLONG","Solis-60k-4G","15 kW","GINLONG"]
[null,null,null,null,null,null,null,null,411,null,"SOLIS","Solis-mini-1500",null,"SOLIS"]
[null,null,null,null,null,null,null,null,412,null,"B&B Power ","ST 12000TL","20 kW","B&B Power "]
[null,null,null,null,null,null,null,null,413,null,"B&B Power ","ST 20000TL","28 kW","B&B Power "]
[null,null,null,null,null,null,null,null,414,null,"RENOVIGI","ST12000TL",null,"RENOVIGI"]
[null,null,null,null,null,null,null,null,415,null,"RENOVIGI","ST20000TL",null,"RENOVIGI"]
[null,null,null,null,null,null,null,null,416,null,"SMA","STP 10000 TL-20",null,"SMA"]
[null,null,null,null,null,null,null,null,417,null,"SMA","STP 12000 TL",null,"SMA"]
[null,null,null,null,null,null,null,null,418,null,"SMA Solar ","STP 12000TL-20",null,"SMA Solar "]
[null,null,null,null,null,null,null,null,419,null,"SMA Solar ","STP 15000TL-30",null,"SMA Solar "]
[null,null,null,null,null,null,null,null,420,null,"SMA","STP 20000TL-30",null,"SMA"]
[null,null,null,null,null,null,null,null,421,null,"SMA Solar ","STP 20000TL-30",null,"SMA Solar "]
[null,null,null,null,null,null,null,null,422,null,"SMA","STP 25000TL-30",null,"SMA"]
[null,null,null,null,null,null,null,null,423,null,"SMA Solar ","STP 25000TL-30",null,"SMA Solar "]
[null,null,null,null,null,null,null,null,424,null,"SMA Solar ","STP 50-40",null,"SMA Solar "]
[null,null,null,null,null,null,null,null,425,null,"SMA Solar ","STP 60-10",null,"SMA Solar "]
[null,null,null,null,null,null,null,null,426,null,"CR2 MAXX","SUN 1300G","50 kW","CR2 MAXX"]
[null,null,null,null,null,null,null,null,427,null,"SMA","Sun 2000 – 50 KTL",null,"SMA"]
[null,null,null,null,null,null,null,null,428,null,"HUAWEI","SUN2000 - 12KTL",null,"HUAWEI"]
[null,null,null,null,null,null,null,null,429,null,"HUAWEI","SUN2000 - 33KTL-A",null,"HUAWEI"]
[null,null,null,null,null,null,null,null,430,null,"HUAWEI","SUN2000 - 60KTL-MO",null,"HUAWEI"]
[null,null,null,null,null,null,null,null,431,null,"HUAWEI","SUN2000 - 65KTL-MO",null,"HUAWEI"]
[null,null,null,null,null,null,null,null,432,null,"Huawei ","SUN2000-17KTL",null,"Huawei "]
[null,null,null,null,null,null,null,null,433,null,"Huawei ","SUN2000-20KTL",null,"Huawei "]
[null,null,null,null,null,null,null,null,434,null,"Huawei ","SUN2000-33KTL-A",null,"Huawei "]
[null,null,null,null,null,null,null,null,435,null,"Huawei ","SUN2000-36KTL",null,"Huawei "]
[null,null,null,null,null,null,null,null,436,null,"Huawei ","SUN2000-40KTL-JP",null,"Huawei "]
[null,null,null,null,null,null,null,null,437,null,"Huawei ","SUN2000-42KTL",null,"Huawei "]
[null,null,null,null,null,null,null,null,438,null,"Huawei ","SUN2000-50KTL",null,"Huawei "]
[null,null,null,null,null,null,null,null,439,null,"Huawei ","SUN2000-60KTL-HV-D1-001",null,"Huawei "]
[null,null,null,null,null,null,null,null,440,null,"Huawei ","SUN2000-60KTL-M0",null,"Huawei "]
[null,null,null,null,null,null,null,null,441,null,"HUAWEI","SUN2000L - 2KTL",null,"HUAWEI"]
[null,null,null,null,null,null,null,null,442,null,"HUAWEI","SUN2000L - 3KTL",null,"HUAWEI"]
[null,null,null,null,null,null,null,null,443,null,"HUAWEI","SUN2000L - 4KTL",null,"HUAWEI"]
[null,null,null,null,null,null,null,null,444,null,"HUAWEI","SUN2000L - 5KTL",null,"HUAWEI"]
[null,null,null,null,null,null,null,null,445,null,"SMA","Sunny Boy 1300TL",null,"SMA"]
[null,null,null,null,null,null,null,null,446,null,"SMA","Sunny Boy 1600TL",null,"SMA"]
[null,null,null,null,null,null,null,null,447,null,"SMA","Sunny Boy 2100TL",null,"SMA"]
[null,null,null,null,null,null,null,null,448,null,"SMA","Sunny Boy 3.0-1AV-40",null,"SMA"]
[null,null,null,null,null,null,null,null,449,null,"SMA","Sunny Boy 3.6-1AV-40",null,"SMA"]
[null,null,null,null,null,null,null,null,450,null,"SMA","Sunny Boy 4.0-1AV-40",null,"SMA"]
[null,null,null,null,null,null,null,null,451,null,"SMA","Sunny Boy 5.0-1AV-40",null,"SMA"]
[null,null,null,null,null,null,null,null,452,null,"SMA","Sunny Boy 5000",null,"SMA"]
[null,null,null,null,null,null,null,null,453,null,"SMA","Sunny Boy 5000TL-21",null,"SMA"]
[null,null,null,null,null,null,null,null,454,null,"SMA","Sunny SMC 4600A",null,"SMA"]
[null,null,null,null,null,null,null,null,455,null,"SMA","Sunny SMC 5000A",null,"SMA"]
[null,null,null,null,null,null,null,null,456,null,"SMA","Sunny SMC 6000A",null,"SMA"]
[null,null,null,null,null,null,null,null,457,null,"SMA","Sunny SMC 7000HV",null,"SMA"]
[null,null,null,null,null,null,null,null,458,null,"KLNE","Sunteams 1500",null,"KLNE"]
[null,null,null,null,null,null,null,null,459,null,"KLNE","Sunteams 2000",null,"KLNE"]
[null,null,null,null,null,null,null,null,460,null,"KLNE","Sunteams 2800",null,"KLNE"]
[null,null,null,null,null,null,null,null,461,null,"KLNE","Sunteams 3000",null,"KLNE"]
[null,null,null,null,null,null,null,null,462,null,"SAJ ","Suntrio Plus 12K",null,"SAJ "]
[null,null,null,null,null,null,null,null,463,null,"SAJ ","Suntrio Plus 15K",null,"SAJ "]
[null,null,null,null,null,null,null,null,464,null,"SAJ ","Suntrio Plus 17K",null,"SAJ "]
[null,null,null,null,null,null,null,null,465,null,"SAJ ","Suntrio Plus 20K",null,"SAJ "]
[null,null,null,null,null,null,null,null,466,null,"SAJ ","Suntrio Plus 25K",null,"SAJ "]
[null,null,null,null,null,null,null,null,467,null,"SAJ ","Suntrio Plus 33K",null,"SAJ "]
[null,null,null,null,null,null,null,null,468,null,"SAJ ","Suntrio Plus 40K",null,"SAJ "]
[null,null,null,null,null,null,null,null,469,null,"SAJ ","Suntrio Plus 50K",null,"SAJ "]
[null,null,null,null,null,null,null,null,470,null,"SAJ ","Suntrio Plus 60K",null,"SAJ "]
[null,null,null,null,null,null,null,null,471,null,"SAJ ","Suntrio-TL12K",null,"SAJ "]
[null,null,null,null,null,null,null,null,472,null,"SAJ ","Suntrio-TL15K",null,"SAJ "]
[null,null,null,null,null,null,null,null,473,null,"SAJ ","Suntrio-TL17K",null,{"$f":"K474","v":"SAJ "}]
[null,null,null,null,null,null,null,null,474,null,"SAJ ","Suntrio-TL20K",null,"SAJ "]
[null,null,null,null,null,null,null,null,475,null,"FRONIUS","Symo 10.0-3 208 240","20 kW","FRONIUS"]
[null,null,null,null,null,null,null,null,476,null,"FRONIUS","Symo 10.0-3-M","20 kW","FRONIUS"]
[null,null,null,null,null,null,null,null,477,null,"Fronius ","SYMO 12.0-3 208-240","30 kW","Fronius "]
[null,null,null,null,null,null,null,null,478,null,"FRONIUS","Symo 12.0-3-M","20 kW","FRONIUS"]
[null,null,null,null,null,null,null,null,479,null,"Fronius ","SYMO 12.5-3-M","30 kW","Fronius "]
[null,null,null,null,null,null,null,null,480,null,"Fronius ","SYMO 15.0-3-M","30 kW","Fronius "]
[null,null,null,null,null,null,null,null,481,null,"Fronius ","SYMO 17.5-3-M","33 kW","Fronius "]
[null,null,null,null,null,null,null,null,482,null,"Fronius ","SYMO 20.0-3-M","33 Kw","Fronius "]
[null,null,null,null,null,null,null,null,483,null,"Fronius ","SYMO BRASIL 15.0-3 208/240","50 kW","Fronius "]
[null,null,null,null,null,null,null,null,484,null,"ABB ","TRIO 20.0-TL-OUTD","40 kW","ABB "]
[null,null,null,null,null,null,null,null,485,null,"ABB ","TRIO 27.6-TL-OUTD","40 kW","ABB "]
[null,null,null,null,null,null,null,null,486,null,"ABB","TRIO 5.8-TL-OUTD","15 kW","ABB"]
[null,null,null,null,null,null,null,null,487,null,"ABB ","TRIO 50.0-TL-OUTD","50 kW","ABB "]
[null,null,null,null,null,null,null,null,488,null,"ABB","TRIO 7.5-TL-OUTD","12 kW","ABB"]
[null,null,null,null,null,null,null,null,489,null,"ABB","TRIO 8.5-TL-OUTD","15 kW","ABB"]
[null,null,null,null,null,null,null,null,490,null,"Power-One ","Trio-20.0TL-OUTD",null,"Power-One "]
[null,null,null,null,null,null,null,null,491,null,"ABB","TRIO-20.0-TL-OUTD-400","3,3 kW","ABB"]
[null,null,null,null,null,null,null,null,492,null,"ABB","TRIO-20.0-TL-OUTD-S2-400","3 kW","ABB"]
[null,null,null,null,null,null,null,null,493,null,"ABB","TRIO-20.0-TL-OUTD-S2F-400","5 kW","ABB"]
[null,null,null,null,null,null,null,null,494,null,"ABB","TRIO-20.0-TL-OUTD-S2X-400","12,5 kW","ABB"]
[null,null,null,null,null,null,null,null,495,null,"Power-One ","Trio-27.6TL-OUTD",null,"Power-One "]
[null,null,null,null,null,null,null,null,496,null,"ABB ","TRIO-33.0-TL-OUTD","50 kW","ABB "]
[null,null,null,null,null,null,null,null,497,null,"ABB","TRIO-60.0-TL-OUTD-480","12,5 kW","ABB"]
[null,null,null,null,null,null,null,null,498,null,"ABB","TRIO-TM-50.0","12,5 kW","ABB"]
[null,null,null,null,null,null,null,null,499,null,"ABB","TRIO-TM-50.0-400","12,5 kW","ABB"]
[null,null,null,null,null,null,null,null,500,null,"ABB","TRIO-TM-60.0","12,5 kW","ABB"]
[null,null,null,null,null,null,null,null,501,null,"ABB","UNO 2.0-I-OUTD","12,5 kW","ABB"]
[null,null,null,null,null,null,null,null,502,null,"ABB","UNO 2.5-I-OUTD","11 kW","ABB"]
[null,null,null,null,null,null,null,null,503,null,"ABB","UNO 3.0-TL-OUTD-S","12 kW","ABB"]
[null,null,null,null,null,null,null,null,504,null,"ABB","UNO DM-4.0-TL-PLUS","12 kW","ABB"]
[null,null,null,null,null,null,null,null,505,null,"ABB","UNO DM-4.6-TL-PLUS-SB","13 kW","ABB"]
[null,null,null,null,null,null,null,null,506,null,"ABB","UNO DM-5.0-TL-PLUS","15 kW","ABB"]
[null,null,null,null,null,null,null,null,507,null,"ABB","UNO DM-5.0-TL-PLUS-SB","15 kW","ABB"]
[null,null,null,null,null,null,null,null,508,null,"ABB","UNO DM-6.0-TL-PLUS","17 kW","ABB"]
[null,null,null,null,null,null,null,null,509,null,"ABB","UNO-2.0-TL-OUTD-S","17 kW","ABB"]
[null,null,null,null,null,null,null,null,510,null,"APSYSTEMS","YC1000-3","20 kW","APSYSTEMS"]
[null,null,null,null,null,null,null,null,511,null,"APsystems","YC1000-3-220","25 kW","APsystems"]
[null,null,null,null,null,null,null,null,512,null,"APSYSTEMS","YC500-3","50 kW","APSYSTEMS"]
[null,null,null,null,null,null,null,null,513,null,"APsystems","YC500A","50 kW","APsystems"]
[null,null,null,null,null,null,null,null,514,null,"APSYSTEMS","YC600-3","25 Kw"]